Workbook

Sheet France
B1: monde | H1: France | J1: =CONCATENATE(MID(N2*100,1,4), " % des malades") -> 3,30 % des malades | N1: =INDEX(Atteints,COUNTA(Atteints),1) -> 2210652 | P1: =INDEX(Décès,COUNTA(Décès),1) -> 48265 | T1: date | U1: atteint | W1: décès | Y1: gueris | AD1: =SUM(J53:J110) -> 33753
A2: date | B2: Atteints | D2: % +- | E2: Décès | G2: % +- | H2: 66987244 | J2: hab | L2: total | N2: =N1/H2 -> 0.03300108898
H3: Atteints | I3: +/- | J3: jour | K3: Décès | L3: % D | M3: jour | N3: Guéris | O3: % G | P3: jour
A4: 2020-03-13 | H4: 3667 | K4: 79 | L4: =IF(H4<>0,K4/H4,0) -> 0.02154349605 | M4: 18 | N4: 12 | O4: =IF(H4<>0,N4/H4,0) -> 0.003272429779 | P4: 0 | T4: Colonne1 | U4: Colonne12 | V4: Colonne2 | W4: Colonne22 | X4: Colonne3 | Y4: Colonne32 | Z4: Colonne4
A5: =+A4+1 -> 2020-03-14 | H5: 4481 | I5: =IF(H5<>0,(H5/H4)-1,0) -> 0.22197982 | J5: =IF(H5<>"",+H5-H4,0) -> 814 | K5: 91 | L5: =IF(H5<>0,K5/H5,0) -> 0.02030796697 | M5: =IF(K5<>"",+K5-K4,0) -> 12 | N5: 12 | O5: 0.002677973667 | P5: 0 | T5: =A4 -> 2020-03-13 | U5: =+I4 -> 0 | V5: =H4 -> 3667 | W5: =L4 -> 0.02154349605 | X5: =K4 -> 79 | Y5: =O4 -> 0.003272429779 | Z5: =N4 -> 12
A6: =+A5+1 -> 2020-03-15 | H6: 5437 | I6: =IF(H6<>0,(H6/H5)-1,0) -> 0.2133452354 | J6: 956 | K6: 127 | L6: 0.02335846974 | M6: 36 | N6: 12 | O6: 0.002207099503 | P6: 0 | T6: 2020-03-14 | U6: 0.22197982 | V6: 4481 | W6: 0.02030796697 | X6: 91 | Y6: 0.002677973667 | Z6: 12
A7: 2020-03-16 | H7: 6650 | I7: 0.2231009748 | J7: 1213 | K7: 148 | L7: 0.0222556391 | M7: 21 | N7: 12 | O7: 0.001804511278 | P7: 0 | T7: 2020-03-15 | U7: 0.2133452354 | V7: 5437 | W7: 0.02335846974 | X7: 127 | Y7: 0.002207099503 | Z7: 12
A8: 2020-03-17 | H8: 7695 | I8: =IF(H8<>0,(H8/H7)-1,0) -> 0.1571428571 | J8: 1045 | K8: 148 | L8: 0.01923326836 | M8: 27 | N8: 12 | O8: 0.001559454191 | P8: 0 | T8: 2020-03-16 | U8: 0.2231009748 | V8: 6650 | W8: 0.0222556391 | X8: 148 | Y8: 0.001804511278 | Z8: 12
A9: 2020-03-18 | H9: 9134 | I9: 0.1870045484 | J9: 1439 | K9: 264 | L9: 0.02890299978 | M9: 89 | N9: 12 | O9: 0.001313772717 | P9: 0 | T9: 2020-03-17 | U9: 0.1571428571 | V9: 7695 | W9: 0.01923326836 | X9: 148 | Y9: 0.001559454191 | Z9: 12
A10: 2020-03-19 | H10: 10995 | I10: 0.2037442522 | J10: 1861 | K10: 372 | L10: 0.03383356071 | M10: 108 | N10: 12 | O10: 0.001091405184 | P10: 0 | T10: 2020-03-18 | U10: 0.1870045484 | V10: 9134 | W10: 0.02890299978 | X10: 264 | Y10: 0.001313772717 | Z10: 12
A11: 2020-03-20 | H11: 12612 | I11: 0.1470668486 | J11: 1617 | K11: 450 | L11: 0.03568030447 | M11: 78 | N11: 12 | O11: 0.0009514747859 | P11: 0 | T11: 2020-03-19 | U11: 0.2037442522 | V11: 10995 | W11: 0.03383356071 | X11: 372 | Y11: 0.001091405184 | Z11: 12
A12: 2020-03-21 | H12: 14459 | I12: 0.1464478275 | J12: 1847 | K12: 562 | L12: 0.03886852479 | M12: 112 | N12: 12 | O12: 0.0008299329138 | P12: 0 | T12: 2020-03-20 | U12: 0.1470668486 | V12: 12612 | W12: 0.03568030447 | X12: 450 | Y12: 0.0009514747859 | Z12: 12
A13: 2020-03-22 | H13: 16018 | I13: 0.1078221177 | J13: 1559 | K13: 674 | L13: 0.04207766263 | M13: 112 | N13: 2200 | O13: 0.1373454863 | P13: 2188 | T13: 2020-03-21 | U13: 0.1464478275 | V13: 14459 | W13: 0.03886852479 | X13: 562 | Y13: 0.0008299329138 | Z13: 12
A14: 2020-03-23 | H14: 19856 | I14: 0.2396054439 | J14: 3838 | K14: 860 | L14: 0.04331184529 | M14: 186 | N14: 2200 | O14: 0.1107977438 | P14: 0 | T14: 2020-03-22 | U14: 0.1078221177 | V14: 16018 | W14: 0.04207766263 | X14: 674 | Y14: 0.1373454863 | Z14: 2200
A15: 2020-03-24 | H15: 22304 | I15: 0.1232876712 | J15: 2448 | K15: 1100 | L15: 0.04931850789 | M15: 240 | N15: 3281 | O15: 0.1471036585 | P15: 1081 | T15: 2020-03-23 | U15: 0.2396054439 | V15: 19856 | W15: 0.04331184529 | X15: 860 | Y15: 0.1107977438 | Z15: 2200
A16: 2020-03-25 | H16: 25233 | I16: 0.131321736 | J16: 2929 | K16: 1331 | L16: 0.05274838505 | M16: 231 | N16: 3900 | O16: 0.1545595054 | P16: 619 | T16: 2020-03-24 | U16: 0.1232876712 | V16: 22304 | W16: 0.04931850789 | X16: 1100 | Y16: 0.1471036585 | Z16: 3281
A17: 2020-03-26 | H17: 29155 | I17: 0.1554313795 | J17: 3922 | K17: 1696 | L17: 0.05817184016 | M17: 365 | N17: 4928 | O17: 0.169027611 | P17: 1048 | T17: 2020-03-25 | U17: 0.131321736 | V17: 25233 | W17: 0.05274838505 | X17: 1331 | Y17: 0.1545595054 | Z17: 3900
A18: 2020-03-27 | H18: 32964 | I18: 0.1306465443 | J18: 3809 | K18: 1995 | L18: 0.06052056789 | M18: 299 | N18: 5700 | O18: 0.1729159083 | P18: 752 | T18: 2020-03-26 | U18: 0.1554313795 | V18: 29155 | W18: 0.05817184016 | X18: 1696 | Y18: 0.169027611 | Z18: 4928
A19: 2020-03-28 | H19: 37575 | I19: 0.1398798689 | J19: 4611 | K19: 2314 | L19: 0.06158349967 | M19: =IF(K19<>"",+K19-K18,0) -> 319 | N19: 5700 | O19: 0.1516966068 | P19: 0 | T19: 2020-03-27 | U19: 0.1306465443 | V19: 32964 | W19: 0.06052056789 | X19: 1995 | Y19: 0.1729159083 | Z19: 5700
A20: 2020-03-29 | H20: 40174 | I20: 0.06916833001 | J20: 2599 | K20: 2606 | L20: 0.06486782496 | M20: 292 | N20: 7202 | O20: 0.1792701747 | P20: 1502 | T20: 2020-03-28 | U20: 0.1398798689 | V20: 37575 | W20: 0.06158349967 | X20: 2314 | Y20: 0.1516966068 | Z20: 5700
A21: 2020-03-30 | H21: 44550 | I21: 0.1089261712 | J21: 4376 | K21: 3024 | L21: 0.06787878788 | M21: 418 | N21: 7927 | O21: 0.1779349046 | P21: 725 | T21: 2020-03-29 | U21: 0.06916833001 | V21: 40174 | W21: 0.06486782496 | X21: 2606 | Y21: 0.1792701747 | Z21: 7202
A22: 2020-03-31 | H22: 52128 | I22: 0.1701010101 | J22: 7578 | K22: 3523 | L22: 0.06758364027 | M22: 499 | N22: 9444 | O22: 0.1811694291 | P22: 1517 | T22: 2020-03-30 | U22: 0.1089261712 | V22: 44550 | W22: 0.06787878788 | X22: 3024 | Y22: 0.1779349046 | Z22: 7927
A23: 2020-04-01 | H23: 67924 | I23: 0.3030233272 | J23: 15796 | K23: 4032 | L23: 0.05936046169 | M23: 509 | N23: 10935 | O23: 0.1609887521 | P23: 1490 | T23: 2020-03-31 | U23: 0.1701010101 | V23: 52128 | W23: 0.06758364027 | X23: 3523 | Y23: 0.1811694291 | Z23: 9444
A24: 2020-04-02 | H24: 71533 | I24: 0.05313291326 | J24: 3609 | K24: 5387 | L24: 0.07530789985 | M24: 1355 | N24: 12428 | O24: 0.1737379951 | P24: 1494 | T24: 2020-04-01 | U24: 0.3030233272 | V24: 67924 | W24: 0.05936046169 | X24: 4032 | Y24: 0.1609887521 | Z24: 10935
A25: 2020-04-03 | H25: 78346 | I25: 0.09524275509 | J25: 6813 | K25: 6507 | L25: 0.08305465499 | M25: 1120 | N25: 14008 | O25: 0.1787966201 | P25: =IF(N25<>"",+N25-N24,0) -> 1580 | T25: 2020-04-02 | U25: 0.05313291326 | V25: 71533 | W25: 0.07530789985 | X25: 5387 | Y25: 0.1737379951 | Z25: 12428
A26: 2020-04-04 | H26: 84043 | I26: 0.07271590126 | J26: 5697 | K26: 7560 | L26: 0.08995395214 | M26: 1053 | N26: 15438 | O26: 0.1836916816 | P26: 1430 | T26: 2020-04-03 | U26: 0.09524275509 | V26: 78346 | W26: 0.08305465499 | X26: 6507 | Y26: 0.1787966201 | Z26: 14008
A27: 2020-04-05 | H27: 86661 | I27: 0.03115072046 | J27: 2618 | K27: 8078 | L27: 0.09321378706 | M27: 518 | N27: 16183 | O27: 0.1867391329 | P27: 745 | T27: 2020-04-04 | U27: 0.07271590126 | V27: 84043 | W27: 0.08995395214 | X27: 7560 | Y27: 0.1836916816 | Z27: 15438
A28: 2020-04-06 | H28: 91640 | I28: 0.05745375659 | J28: 4979 | K28: 8911 | L28: 0.09723919686 | M28: 833 | N28: 17250 | O28: 0.1882365779 | P28: 1067 | T28: 2020-04-05 | U28: 0.03115072046 | V28: 86661 | W28: 0.09321378706 | X28: 8078 | Y28: 0.1867391329 | Z28: 16183
A29: 2020-04-07 | H29: 97504 | I29: =IF(H29<>0,(H29/H28)-1,0) -> 0.06398952423 | J29: =IF(H29<>"",+H29-H28,0) -> 5864 | K29: 10328 | L29: =IF(H29<>0,K29/H29,0) -> 0.1059238595 | M29: =IF(K29<>"",+K29-K28,0) -> 1417 | N29: 19337 | O29: =IF(H29<>0,N29/H29,0) -> 0.1983200689 | P29: =IF(N29<>"",+N29-N28,0) -> 2087 | T29: 2020-04-06 | U29: 0.05745375659 | V29: 91640 | W29: 0.09723919686 | X29: 8911 | Y29: 0.1882365779 | Z29: 17250
A30: 2020-04-08 | H30: 103102 | I30: 0.05741302921 | J30: 5598 | K30: 10869 | L30: 0.1054198755 | M30: 541 | N30: 21254 | O30: 0.2061453706 | P30: 1917 | T30: 2020-04-07 | U30: 0.06398952423 | V30: 97504 | W30: 0.1059238595 | X30: 10328 | Y30: 0.1983200689 | Z30: 19337
A31: 2020-04-09 | H31: 109540 | I31: 0.06244301759 | J31: 6438 | K31: 12210 | L31: 0.1114661311 | M31: 1341 | N31: 23206 | O31: 0.2118495527 | P31: 1952 | T31: 2020-04-08 | U31: 0.05741302921 | V31: 103102 | W31: 0.1054198755 | X31: 10869 | Y31: 0.2061453706 | Z31: 21254
A32: 2020-04-10 | H32: 115068 | I32: 0.05046558335 | J32: 5528 | K32: 13197 | L32: 0.1146887058 | M32: 987 | N32: 24932 | O32: 0.216671881 | P32: 1726 | T32: 2020-04-09 | U32: 0.06244301759 | V32: 109540 | W32: 0.1114661311 | X32: 12210 | Y32: 0.2118495527 | Z32: 23206
A33: 2020-04-11 | H33: 120181 | I33: 0.0444345952 | J33: 5113 | K33: 13832 | L33: 0.115093068 | M33: 635 | N33: 26391 | O33: 0.2195937794 | P33: 1459 | T33: 2020-04-10 | U33: 0.05046558335 | V33: 115068 | W33: 0.1146887058 | X33: 13197 | Y33: 0.216671881 | Z33: 24932
A34: 2020-04-12 | H34: 120633 | I34: 0.003760993834 | J34: 452 | K34: 14393 | L34: 0.1193122943 | M34: 561 | N34: 27186 | O34: 0.2253612196 | P34: 795 | T34: 2020-04-11 | U34: 0.0444345952 | V34: 120181 | W34: 0.115093068 | X34: 13832 | Y34: 0.2195937794 | Z34: 26391
A35: 2020-04-13 | H35: 124298 | I35: 0.03038140476 | J35: 3665 | K35: 14967 | L35: 0.1204122351 | M35: 574 | N35: 27718 | O35: 0.2229963475 | P35: 532 | T35: 2020-04-12 | U35: 0.003760993834 | V35: 120633 | W35: 0.1193122943 | X35: 14393 | Y35: 0.2253612196 | Z35: 27186
A36: 2020-04-14 | H36: 130253 | I36: 0.04790905727 | J36: 5955 | K36: 15729 | L36: 0.1207572954 | M36: 762 | N36: 28805 | O36: 0.2211465379 | P36: 1087 | T36: 2020-04-13 | U36: 0.03038140476 | V36: 124298 | W36: 0.1204122351 | X36: 14967 | Y36: 0.2229963475 | Z36: 27718
A37: 2020-04-15 | H37: 133470 | I37: 0.02469808757 | J37: 3217 | K37: 17167 | L37: 0.1286206638 | M37: 1438 | N37: 30955 | O37: 0.2319247771 | P37: 2150 | T37: =A36 -> 2020-04-14 | U37: 0.04790905727 | V37: =H36 -> 130253 | W37: =L36 -> 0.1207572954 | X37: =K36 -> 15729 | Y37: 0.2211465379 | Z37: =N36 -> 28805
A38: 2020-04-16 | H38: 146060 | I38: 0.09432831348 | J38: 12590 | K38: 17920 | L38: 0.1226893058 | M38: 753 | N38: 32812 | O38: 0.2246474052 | P38: 1857 | T38: 2020-04-15 | U38: 0.02469808757 | V38: 133470 | W38: 0.1286206638 | X38: 17167 | Y38: 0.2319247771 | Z38: 30955
A39: 2020-04-17 | H39: 147969 | I39: 0.01306997124 | J39: 1909 | K39: 18681 | L39: 0.1262494171 | M39: =IF(K39="",NA(),+K39-K38) -> 761 | N39: 34420 | O39: 0.2326162913 | P39: =IF(N39="",NA(),+N39-N38) -> 1608 | T39: 2020-04-16 | U39: 0.09432831348 | V39: 146060 | W39: 0.1226893058 | X39: 17920 | Y39: 0.2246474052 | Z39: 32812
A40: 2020-04-18 | H40: 151793 | I40: 0.02584325095 | J40: 3824 | K40: 19323 | L40: 0.1272983603 | M40: 642 | N40: 35983 | O40: 0.237053092 | P40: 1563 | T40: 2020-04-17 | U40: 0.01306997124 | V40: 147969 | W40: 0.1262494171 | X40: 18681 | Y40: 0.2326162913 | Z40: 34420
A41: 2020-04-19 | H41: 152894 | I41: 0.0072532989 | J41: =IF(H41="",NA(),+H41-H40) -> 1101 | K41: 19718 | L41: 0.1289651654 | M41: 395 | N41: 36578 | O41: 0.2392376418 | P41: 595 | T41: 2020-04-18 | U41: 0.02584325095 | V41: 151793 | W41: 0.1272983603 | X41: 19323 | Y41: 0.237053092 | Z41: 35983
A42: 2020-04-20 | H42: 155383 | I42: =IF(H42<>0,(H42/H41)-1,0) -> 0.01627925229 | J42: =IF(H42="",NA(),+H42-H41) -> 2489 | K42: 20265 | L42: =IF(H42<>0,K42/H42,0) -> 0.1304196727 | M42: =IF(K42="",NA(),+K42-K41) -> 547 | N42: 37409 | O42: =IF(H42<>0,N42/H42,0) -> 0.240753493 | P42: 831 | T42: 2020-04-19 | U42: 0.0072532989 | V42: 152894 | W42: 0.1289651654 | X42: 19718 | Y42: 0.2392376418 | Z42: 36578
A43: 2020-04-21 | H43: 158050 | I43: 0.01716403982 | J43: =IF(H43="",NA(),+H43-H42) -> 2667 | K43: 20796 | L43: 0.1315786144 | M43: =IF(K43="",NA(),+K43-K42) -> 531 | N43: 39181 | O43: 0.2479025625 | P43: =IF(N43="",NA(),+N43-N42) -> 1772 | T43: 2020-04-20 | U43: 0.01627925229 | V43: 155383 | W43: 0.1304196727 | X43: 20265 | Y43: 0.240753493 | Z43: 37409
A44: 2020-04-22 | H44: 155873 | I44: -0.01377412211 | J44: -2177 | K44: 21340 | L44: 0.1369063276 | M44: 544 | N44: 40657 | O44: 0.2608341406 | P44: 1476 | T44: 2020-04-21 | U44: =+I43 -> 0.01716403982 | V44: 158050 | W44: 0.1315786144 | X44: 20796 | Y44: =O43 -> 0.2479025625 | Z44: 39181
A45: 2020-04-23 | H45: 158184 | I45: 0.01482617259 | J45: 2311 | K45: 21856 | L45: 0.1381682092 | M45: 516 | N45: 42088 | O45: 0.2660698933 | P45: 1431 | T45: 2020-04-22 | U45: -0.01377412211 | V45: 155873 | W45: 0.1369063276 | X45: 21340 | Y45: 0.2608341406 | Z45: 40657
A46: 2020-04-24 | H46: 159828 | I46: 0.0103929601 | J46: 1644 | K46: 22245 | L46: 0.1391808694 | M46: 389 | N46: 43493 | O46: 0.2721237831 | P46: 1405 | T46: 2020-04-23 | U46: 0.01482617259 | V46: 158184 | W46: 0.1381682092 | X46: 21856 | Y46: 0.2660698933 | Z46: 42088
A47: 2020-04-25 | H47: 161488 | I47: 0.01038616513 | J47: 1660 | K47: 22902 | L47: 0.1418185871 | M47: 369 | N47: 44504 | O47: 0.2755870405 | P47: 1011 | T47: 2020-04-24 | U47: 0.0103929601 | V47: 159828 | W47: 0.1391808694 | X47: 22245 | Y47: 0.2721237831 | Z47: 43493
A48: 2020-04-26 | H48: 162100 | I48: 0.003789755276 | J48: 612 | K48: 22856 | L48: 0.1409993831 | M48: 242 | N48: 44903 | O48: 0.2770080197 | P48: 399 | T48: 2020-04-25 | U48: 0.01038616513 | V48: 161488 | W48: 0.1418185871 | X48: 22902 | Y48: 0.2755870405 | Z48: 44504
A49: 2020-04-27 | H49: 165842 | I49: 0.02308451573 | J49: 3742 | K49: 23293 | L49: 0.1404529613 | M49: =IF(K49="",NA(),+K49-K48) -> 437 | N49: 45513 | O49: 0.2744359089 | P49: 610 | T49: 2020-04-26 | U49: 0.003789755276 | V49: 162100 | W49: 0.1409993831 | X49: 22856 | Y49: 0.2770080197 | Z49: 44903
A50: 2020-04-28 | H50: 165911 | I50: 0.0004160586582 | J50: 69 | K50: 23660 | L50: 0.1426065782 | M50: 367 | N50: 46886 | O50: 0.2825972961 | P50: 1373 | T50: 2020-04-27 | U50: 0.02308451573 | V50: 165842 | W50: 0.1404529613 | X50: 23293 | Y50: 0.2744359089 | Z50: 45513
A51: 2020-04-29 | H51: 166420 | I51: 0.003067909904 | J51: 509 | K51: 24087 | L51: 0.1447362096 | M51: 427 | N51: 48228 | O51: 0.2897968994 | P51: 1342 | T51: 2020-04-28 | U51: 0.0004160586582 | V51: 165911 | W51: 0.1426065782 | X51: 23660 | Y51: 0.2825972961 | Z51: 46886
A52: 2020-04-30 | B52: 3259409 | E52: 233429 | F52: =IF(E52<>0,+E52-E51,0) -> 233429 | H52: 167178 | I52: 0.004554741017 | J52: 758 | K52: 24376 | L52: 0.145808659 | M52: 289 | N52: 49476 | O52: 0.2959480314 | P52: 1248 | T52: 2020-04-29 | U52: 0.003067909904 | V52: 166420 | W52: 0.1447362096 | X52: 24087 | Y52: 0.2897968994 | Z52: 48228
A53: 2020-05-01 | B53: 3346016 | D53: =IF(B53<>0,(B53/B52)-1,0) -> 0.0265713815 | E53: 238788 | F53: 5359 | G53: =IF(E53<>0,(E53/E52)-1,0) -> 0.02295773019 | H53: 167346 | I53: 0.001004916915 | J53: 168 | K53: 24594 | L53: 0.1469649708 | M53: 218 | N53: 50212 | O53: 0.3000490003 | P53: 736 | T53: 2020-04-30 | U53: 0.004554741017 | V53: 167178 | W53: 0.145808659 | X53: 24376 | Y53: 0.2959480314 | Z53: 49476
A54: 2020-05-02 | B54: 3428762 | D54: 0.02472970841 | E54: 243839 | F54: 5051 | G54: 0.02115265424 | H54: 168396 | I54: 0.006274425442 | J54: 1050 | K54: 24760 | L54: 0.1470343714 | M54: 166 | N54: 50562 | O54: 0.3002565382 | P54: 350 | T54: 2020-05-01 | U54: 0.001004916915 | V54: 167346 | W54: 0.1469649708 | X54: 24594 | Y54: 0.3000490003 | Z54: 50212
A55: 2020-05-03 | B55: 3508685 | D55: 0.02330957938 | E55: 247522 | F55: 3683 | G55: 0.01510422861 | H55: 168693 | I55: 0.00176369985 | J55: 297 | K55: 24895 | L55: 0.1475757737 | M55: 135 | N55: 50784 | O55: 0.3010439082 | P55: 222 | T55: 2020-05-02 | U55: 0.006274425442 | V55: 168396 | W55: 0.1470343714 | X55: 24760 | Y55: 0.3002565382 | Z55: 50562
A56: 2020-05-04 | B56: 3585897 | D56: 0.0220059652 | E56: 251613 | F56: 4091 | G56: 0.01652782379 | H56: 169462 | I56: 0.004558576823 | J56: 769 | K56: 25201 | L56: 0.1487118056 | M56: 306 | N56: 51371 | O56: 0.3031417073 | P56: 587 | T56: 2020-05-03 | U56: 0.00176369985 | V56: 168693 | W56: 0.1475757737 | X56: 24895 | Y56: 0.3010439082 | Z56: 50784
A57: 2020-05-05 | B57: 3665626 | D57: 0.02223404632 | E57: 257334 | F57: 5721 | G57: 0.02273729895 | H57: 170551 | I57: 0.006426219447 | J57: 1089 | K57: 25531 | L57: 0.149697158 | M57: 330 | N57: 52736 | O57: 0.3092095619 | P57: 1365 | T57: 2020-05-04 | U57: 0.004558576823 | V57: 169462 | W57: 0.1487118056 | X57: 25201 | Y57: 0.3031417073 | Z57: 51371
A58: 2020-05-06 | B58: 3754837 | D58: 0.02433718006 | E58: 263878 | F58: 6544 | G58: 0.02542998593 | H58: 174191 | I58: 0.02134258961 | J58: 3640 | K58: 25809 | L58: 0.1481649454 | M58: 278 | N58: 53972 | O58: 0.3098437922 | P58: 1236 | T58: 2020-05-05 | U58: 0.006426219447 | V58: 170551 | W58: 0.149697158 | X58: 25531 | Y58: 0.3092095619 | Z58: 52736
A59: 2020-05-07 | B59: 3848797 | D59: 0.02502372273 | E59: 269632 | F59: 5754 | G59: 0.02180553134 | H59: 174791 | I59: 0.003444494836 | J59: 600 | K59: 25987 | L59: 0.1486747029 | M59: 178 | N59: 55027 | O59: 0.3148159802 | P59: 1055 | T59: 2020-05-06 | U59: 0.02134258961 | V59: 174191 | W59: 0.1481649454 | X59: 25809 | Y59: 0.3098437922 | Z59: 53972
A60: 2020-05-08 | B60: 3941108 | D60: 0.02398437746 | E60: 274972 | F60: 5340 | G60: 0.01980477095 | H60: 176079 | I60: 0.007368800453 | J60: 1288 | K60: 26230 | L60: 0.1489672249 | M60: 243 | N60: 55782 | O60: 0.3168009814 | P60: 755 | T60: 2020-05-07 | U60: 0.003444494836 | V60: 174791 | W60: 0.1486747029 | X60: 25987 | Y60: 0.3148159802 | Z60: 55027
A61: 2020-05-09 | B61: 4027077 | D61: 0.02181340882 | E61: 279368 | F61: 4396 | G61: 0.01598708232 | H61: 176658 | I61: 0.00328829673 | J61: 579 | K61: 26310 | L61: 0.1489318344 | M61: 80 | N61: 56038 | O61: 0.3172117877 | P61: 256 | T61: 2020-05-08 | U61: 0.007368800453 | V61: 176079 | W61: 0.1489672249 | X61: 26230 | Y61: 0.3168009814 | Z61: 55782
A62: 2020-05-10 | B62: 4105079 | D62: 0.0193693838 | E62: 282766 | F62: 3398 | G62: 0.01216316829 | H62: 176970 | I62: 0.001766124376 | J62: 312 | K62: 26380 | L62: 0.1490648132 | M62: 70 | N62: 56217 | O62: 0.3176640108 | P62: 179 | T62: 2020-05-09 | U62: 0.00328829673 | V62: 176658 | W62: 0.1489318344 | X62: 26310 | Y62: 0.3172117877 | Z62: 56038
A63: 2020-05-11 | B63: 4223000 | D63: 0.02872563476 | E63: 287125 | F63: 4359 | G63: 0.0154155733 | H63: 177423 | I63: 0.002559755891 | J63: 453 | K63: 26643 | L63: 0.1501665511 | M63: 263 | N63: 56724 | O63: 0.3197105223 | P63: 507 | T63: 2020-05-10 | U63: 0.001766124376 | V63: 176970 | W63: 0.1490648132 | X63: 26380 | Y63: 0.3176640108 | Z63: 56217
A64: 2020-05-12 | B64: 4264825 | D64: 0.009904096614 | E64: 292021 | F64: 4896 | G64: 0.0170518067 | H64: 178225 | I64: =IF(H64<>0,(H64/H63)-1,0) -> 0.004520270765 | J64: =IF(H64="",NA(),+H64-H63) -> 802 | K64: 26991 | L64: =IF(H64<>0,K64/H64,0) -> 0.1514434002 | M64: =IF(K64="",NA(),+K64-K63) -> 348 | N64: 57785 | O64: =IF(H64<>0,N64/H64,0) -> 0.3242249965 | P64: =IF(N64="",NA(),+N64-N63) -> 1061 | T64: 2020-05-11 | U64: 0.002559755891 | V64: 177423 | W64: 0.1501665511 | X64: 26643 | Y64: 0.3197105223 | Z64: 56724
A65: 2020-05-13 | B65: 4350324 | D65: 0.02004748143 | E65: 297268 | F65: 5247 | G65: 0.01796788587 | H65: 178060 | I65: -0.0009257960443 | J65: -165 | K65: 27074 | L65: 0.1520498708 | M65: 83 | N65: 58673 | O65: 0.3295125239 | P65: 888 | T65: 2020-05-12 | U65: 0.004520270765 | V65: 178225 | W65: 0.1514434002 | X65: 26991 | Y65: 0.3242249965 | Z65: 57785
A66: 2020-05-14 | B66: 4444320 | D66: 0.02160666654 | E66: 302462 | F66: 5194 | G66: 0.0174724491 | H66: 178870 | I66: 0.004549028417 | J66: 810 | K66: 27425 | L66: 0.1533236429 | M66: 351 | N66: 59605 | O66: 0.333230838 | P66: 932 | T66: 2020-05-13 | U66: -0.0009257960443 | V66: 178060 | W66: 0.1520498708 | X66: 27074 | Y66: 0.3295125239 | Z66: 58673
A67: 2020-05-15 | B67: 4545483 | D67: 0.02276231234 | E67: 307749 | F67: 5287 | G67: 0.01747988177 | H67: 179506 | I67: 0.003555654945 | J67: 636 | K67: 27529 | L67: 0.27 | M67: 104 | N67: 60448 | O67: 0.336746404 | P67: 843 | T67: 2020-05-14 | U67: 0.004549028417 | V67: 178870 | W67: 0.1533236429 | X67: 27425 | Y67: 0.333230838 | Z67: 59605
A68: 2020-05-16 | B68: 4637987 | D68: 0.0203507526 | E68: 311966 | F68: 4217 | G68: 0.01370272527 | H68: 179365 | I68: -0.0007854890644 | J68: -141 | K68: 27625 | L68: 0.1540155549 | M68: 96 | N68: 61066 | O68: 0.3404566108 | P68: 618 | T68: 2020-05-15 | U68: 0.003555654945 | V68: 179506 | W68: 0.27 | X68: 27529 | Y68: 0.336746404 | Z68: 60448
A69: 2020-05-17 | B69: 4719259 | D69: 0.01752311941 | E69: 315290 | F69: 3324 | G69: 0.01065500728 | H69: 179569 | I69: 0.001137345636 | J69: 204 | K69: 27850 | L69: 0.1550935852 | M69: 225 | N69: 61213 | O69: 0.3408884607 | P69: 147 | T69: =A68 -> 2020-05-16 | U69: =+I68 -> -0.0007854890644 | V69: =H68 -> 179365 | W69: =L68 -> 0.1540155549 | X69: =K68 -> 27625 | Y69: =O68 -> 0.3404566108 | Z69: =N68 -> 61066
A70: =+A69+1 -> 2020-05-18 | B70: 4807802 | D70: 0.01876205565 | E70: 318600 | F70: 3310 | G70: 0.01049827143 | H70: 179927 | I70: 0.001993662603 | J70: 358 | K70: 28108 | L70: 0.156218911 | M70: 258 | N70: 61728 | O70: 0.3430724683 | P70: 515 | T70: 2020-05-17 | U70: 0.001137345636 | V70: 179569 | W70: 0.1550935852 | X70: 27850 | Y70: 0.3408884607 | Z70: 61213
A71: 2020-05-19 | B71: 4899872 | D71: 0.01915012307 | E71: 323331 | F71: 4731 | G71: 0.01484934087 | H71: 180809 | I71: 0.004901988028 | J71: 882 | K71: 28022 | L71: 0.1549812233 | M71: -86 | N71: 62563 | O71: 0.3460170677 | P71: 835 | T71: 2020-05-18 | U71: 0.001993662603 | V71: 179927 | W71: 0.156218911 | X71: 28108 | Y71: 0.3430724683 | Z71: 61728
A72: 2020-05-20 | B72: 4998977 | D72: 0.02022603856 | E72: 328163 | F72: 4832 | G72: 0.01494443774 | H72: 181575 | I72: 0.004236514775 | J72: 766 | K72: 28132 | L72: 0.1549332232 | M72: 110 | N72: 63354 | O72: 0.348913672 | P72: 791 | T72: 2020-05-19 | U72: 0.004901988028 | V72: 180809 | W72: 0.1549812233 | X72: 28022 | Y72: 0.3460170677 | Z72: 62563
A73: 2020-05-21 | B73: 5108674 | D73: 0.02194388972 | E73: 333026 | F73: 4863 | G73: 0.01481885526 | H73: 181826 | I73: 0.001382348892 | J73: 251 | K73: 28215 | L73: 0.1551758274 | M73: 83 | N73: 63658 | O73: 0.3501039455 | P73: 304 | T73: 2020-05-20 | U73: 0.004236514775 | V73: 181575 | W73: 0.1549332232 | X73: 28132 | Y73: 0.348913672 | Z73: 63354
A74: 2020-05-22 | B74: 5108674 | D74: =IF(B74<>0,(B74/B73)-1,0) -> 0 | E74: 333026 | F74: =IF(E74<>0,+E74-E73,0) -> 0 | G74: =IF(E74<>0,(E74/E73)-1,0) -> 0 | H74: 182219 | I74: 0.002161407059 | J74: 393 | K74: 28289 | L74: 0.1552472574 | M74: 74 | N74: 64209 | O74: 0.3523726944 | P74: 551 | T74: 2020-05-21 | U74: 0.001382348892 | V74: 181826 | W74: 0.1551758274 | X74: 28215 | Y74: 0.3501039455 | Z74: 63658
A75: 2020-05-23 | B75: 5108674 | D75: 0 | E75: 333026 | F75: 0 | G75: 0 | H75: 182469 | I75: 0.00137197548 | J75: 250 | K75: 28332 | L75: 0.1552702103 | M75: 43 | N75: 64547 | O75: 0.3537422795 | P75: 338 | T75: 2020-05-22 | U75: 0.002161407059 | V75: 182219 | W75: 0.1552472574 | X75: 28289 | Y75: 0.3523726944 | Z75: 64209
A76: 2020-05-24 | B76: 5108674 | D76: 0 | E76: 333026 | F76: 0 | G76: 0 | H76: 182584 | I76: 0.0006302440415 | J76: 115 | K76: 28367 | L76: 0.1553641064 | M76: 35 | N76: 64617 | O76: 0.3539028611 | P76: 70 | T76: 2020-05-23 | U76: 0.00137197548 | V76: 182469 | W76: 0.1552702103 | X76: 28332 | Y76: 0.3537422795 | Z76: 64547
A77: 2020-05-25 | B77: 5108674 | D77: 0 | E77: 333026 | F77: 0 | G77: 0 | H77: 182942 | I77: 0.001960741357 | J77: 358 | K77: 28457 | L77: 0.1555520329 | M77: 90 | N77: 65199 | O77: 0.3563916433 | P77: 582 | T77: 2020-05-24 | U77: 0.0006302440415 | V77: 182584 | W77: 0.1553641064 | X77: 28367 | Y77: 0.3539028611 | Z77: 64617
A78: 2020-05-26 | B78: 5108674 | D78: 0 | E78: 333026 | F78: 0 | G78: 0 | H78: 182722 | I78: -0.001202566934 | J78: -220 | K78: 28530 | L78: 0.1561388339 | M78: 73 | N78: 65879 | O78: 0.3605422445 | P78: 680 | T78: 2020-05-25 | U78: 0.001960741357 | V78: 182942 | W78: 0.1555520329 | X78: 28457 | Y78: 0.3563916433 | Z78: 65199
A79: 2020-05-27 | B79: 5108674 | D79: 0 | E79: 333026 | F79: 0 | G79: 0 | H79: 182913 | I79: 0.001045303795 | J79: 191 | K79: 28595 | L79: 0.156331152 | M79: 65 | N79: 66584 | O79: 0.3640200532 | P79: 705 | T79: 2020-05-26 | U79: -0.001202566934 | V79: 182722 | W79: 0.1561388339 | X79: 28530 | Y79: 0.3605422445 | Z79: 65879
A80: 2020-05-28 | B80: 5108674 | D80: 0 | E80: 333026 | F80: 0 | G80: 0 | H80: 186238 | I80: 0.01817804093 | J80: 3325 | K80: 28661 | L80: 0.1538944791 | M80: 66 | N80: 67191 | O80: 0.3607802919 | P80: 607 | T80: 2020-05-27 | U80: 0.001045303795 | V80: 182913 | W80: 0.156331152 | X80: 28595 | Y80: 0.3640200532 | Z80: 66584
A81: 2020-05-29 | B81: 5108674 | D81: 0 | E81: 333026 | F81: 0 | G81: 0 | H81: 186835 | I81: 0.003205575661 | J81: 597 | K81: 28722 | L81: 0.1537292263 | M81: 61 | N81: 67803 | O81: 0.3629030963 | P81: 612 | T81: 2020-05-28 | U81: 0.01817804093 | V81: 186238 | W81: 0.1538944791 | X81: 28661 | Y81: 0.3607802919 | Z81: 67191
A82: 2020-05-30 | B82: 5108674 | D82: 0 | E82: 333026 | F82: 0 | G82: 0 | H82: 188663 | I82: 0.009784034041 | J82: 1828 | K82: 28771 | L82: 0.1524994302 | M82: 49 | N82: 68268 | O82: 0.3618515554 | P82: 465 | T82: 2020-05-29 | U82: 0.003205575661 | V82: 186835 | W82: 0.1537292263 | X82: 28722 | Y82: 0.3629030963 | Z82: 67803
A83: 2020-05-31 | B83: 5108674 | D83: 0 | E83: 333026 | F83: 0 | G83: 0 | H83: 188920 | I83: 0.001362217287 | J83: 257 | K83: 28802 | L83: 0.1524560661 | M83: 31 | N83: 68355 | O83: 0.3618198179 | P83: 87 | T83: 2020-05-30 | U83: 0.009784034041 | V83: 188663 | W83: 0.1524994302 | X83: 28771 | Y83: 0.3618515554 | Z83: 68268
A84: 2020-06-01 | B84: 5108674 | D84: 0 | E84: 333026 | F84: 0 | G84: 0 | H84: 189258 | I84: 0.001789117087 | J84: 338 | K84: 28833 | L84: 0.152347589 | M84: 31 | N84: 68440 | O84: 0.3616227584 | P84: 85 | T84: 2020-05-31 | U84: 0.001362217287 | V84: 188920 | W84: 0.1524560661 | X84: 28802 | Y84: 0.3618198179 | Z84: 68355
A85: 2020-06-02 | B85: 5108674 | D85: 0 | E85: 333026 | F85: 0 | G85: 0 | H85: 188640 | I85: -0.003265383762 | J85: -618 | K85: 28940 | L85: 0.1534139101 | M85: 107 | N85: 68812 | O85: 0.3647794741 | P85: 372 | T85: 2020-06-01 | U85: 0.001789117087 | V85: 189258 | W85: 0.152347589 | X85: 28833 | Y85: 0.3616227584 | Z85: 68440
A86: 2020-06-03 | B86: 5108674 | D86: 0 | E86: 333026 | F86: 0 | G86: 0 | H86: 189020 | I86: 0.002014418999 | J86: 380 | K86: 29021 | L86: 0.1535340176 | M86: 81 | N86: 69455 | O86: 0.3674478891 | P86: 643 | T86: 2020-06-02 | U86: -0.003265383762 | V86: 188640 | W86: 0.1534139101 | X86: 28940 | Y86: 0.3647794741 | Z86: 68812
A87: 2020-06-04 | B87: 5108674 | D87: 0 | E87: 333026 | F87: 0 | G87: 0 | H87: 189849 | I87: 0.004385779283 | J87: 829 | K87: 29065 | L87: 0.1530953547 | M87: 44 | N87: 69976 | O87: 0.368587667 | P87: 521 | T87: 2020-06-03 | U87: 0.002014418999 | V87: 189020 | W87: 0.1535340176 | X87: 29021 | Y87: 0.3674478891 | Z87: 69455
A88: 2020-06-05 | B88: 5108674 | D88: 0 | E88: 333026 | F88: 0 | G88: 0 | H88: 190460 | I88: 0.003218347213 | J88: 611 | K88: 29111 | L88: 0.1528457419 | M88: 46 | N88: 70504 | O88: 0.3701774651 | P88: 528 | T88: 2020-06-04 | U88: 0.004385779283 | V88: 189849 | W88: 0.1530953547 | X88: 29065 | Y88: 0.368587667 | Z88: 69976
A89: 2020-06-06 | B89: 5108674 | D89: 0 | E89: 333026 | F89: 0 | G89: 0 | H89: 191039 | I89: 0.003040008401 | J89: 579 | K89: 29142 | L89: 0.1525447683 | M89: 31 | N89: 70806 | O89: 0.3706363622 | P89: 302 | T89: 2020-06-05 | U89: 0.003218347213 | V89: 190460 | W89: 0.1528457419 | X89: 29111 | Y89: 0.3701774651 | Z89: 70504
A90: 2020-06-07 | B90: 7039222 | D90: =IF(B90<>0,(B90/B73)-1,0) -> 0.3778961038 | E90: 403264 | G90: =IF(E90<>0,(E90/E73)-1,0) -> 0.2109084576 | H90: 191382 | I90: 0.001795444909 | J90: 343 | K90: 29155 | L90: 0.1523393005 | M90: 13 | N90: 70842 | O90: 0.3701602032 | P90: 36 | T90: 2020-06-06 | U90: 0.003040008401 | V90: 191039 | W90: 0.1525447683 | X90: 29142 | Y90: 0.3706363622 | Z90: 70806
A91: 2020-06-08 | B91: 7120016 | C91: =IF(B91<>0,+B91-B90,0) -> 80794 | D91: =IF(B91<>0,(B91/B90)-1,0) -> 0.01147768887 | E91: 406539 | F91: =IF(E91<>0,+E91-E90,0) -> 3275 | G91: =IF(E91<>0,(E91/E90)-1,0) -> 0.008121230757 | H91: 191593 | I91: 0.001102507028 | J91: 211 | K91: 29209 | L91: 0.1524533777 | M91: 54 | N91: 71062 | O91: 0.3709008158 | P91: 220 | T91: 2020-06-07 | U91: 0.001795444909 | V91: 191382 | W91: 0.1523393005 | X91: 29155 | Y91: 0.3701602032 | Z91: 70842
A92: 2020-06-09 | B92: 7239006 | C92: =IF(B92<>0,+B92-B91,0) -> 118990 | D92: 0.0167120411 | E92: 411240 | F92: =IF(E92<>0,+E92-E91,0) -> 4701 | G92: 0.01156346624 | H92: 191996 | I92: 0.002103417139 | J92: 403 | K92: 29262 | L92: 0.1524094252 | M92: 53 | N92: 71503 | O92: 0.3724192171 | P92: 441 | T92: 2020-06-08 | U92: 0.001102507028 | V92: 191593 | W92: 0.1524533777 | X92: 29209 | Y92: 0.3709008158 | Z92: 71062
A93: 2020-06-10 | B93: 7360712 | C93: 121706 | D93: 0.01681252923 | E93: 416164 | F93: 4924 | G93: 0.01197354343 | H93: 192541 | I93: 0.002838600804 | J93: 545 | K93: 29285 | L93: 0.1520974753 | M93: 23 | N93: 71832 | O93: 0.3730737869 | P93: 329 | T93: 2020-06-09 | U93: 0.002103417139 | V93: 191996 | W93: 0.1524094252 | X93: 29262 | Y93: 0.3724192171 | Z93: 71503
A94: 2020-06-11 | B94: 7514559 | C94: 153847 | D94: 0.02090110305 | E94: 421458 | F94: 5294 | G94: 0.01272094655 | H94: 192493 | I94: -0.0002492975522 | J94: -48 | K94: 29349 | L94: 0.1524678819 | M94: 64 | N94: 72269 | O94: 0.3754370289 | P94: 437 | T94: 2020-06-10 | U94: 0.002838600804 | V94: 192541 | W94: 0.1520974753 | X94: 29285 | Y94: 0.3730737869 | Z94: 71832
A95: 2020-06-12 | B95: 7651362 | C95: 136803 | D95: 0.01820506034 | E95: 425866 | F95: 4408 | G95: 0.01045893066 | H95: 193886 | I95: 0.007236626786 | J95: 1393 | K95: 29374 | L95: 0.1515013977 | M95: 25 | N95: 72572 | O95: 0.3743024251 | P95: 303 | T95: 2020-06-11 | U95: -0.0002492975522 | V95: 192493 | W95: 0.1524678819 | X95: 29349 | Y95: 0.3754370289 | Z95: 72269
A96: 2020-06-13 | B96: 7786711 | C96: 135349 | D96: 0.01768953031 | E96: 430125 | F96: 4259 | G96: 0.01000079837 | H96: 194412 | I96: 0.002712934405 | J96: 526 | K96: 29398 | L96: 0.1512149456 | M96: 24 | N96: 72808 | O96: 0.3745036315 | P96: 236 | T96: 2020-06-12 | U96: 0.007236626786 | V96: 193886 | W96: 0.1515013977 | X96: 29374 | Y96: 0.3743024251 | Z96: 72572
A97: 2020-06-14 | B97: 7913647 | C97: 126936 | D97: 0.01630161952 | E97: 433391 | F97: 3266 | G97: 0.007593141529 | H97: 194819 | I97: 0.002093492171 | J97: 407 | K97: 29407 | L97: 0.1509452363 | M97: 9 | N97: 72859 | O97: 0.3739830304 | P97: 51 | T97: 2020-06-13 | U97: 0.002712934405 | V97: 194412 | W97: 0.1512149456 | X97: 29398 | Y97: 0.3745036315 | Z97: 72808
A98: 2020-06-15 | B98: 8035127 | C98: 121480 | D98: 0.01535069735 | E98: 436896 | F98: 3505 | G98: 0.008087385294 | H98: 194971 | I98: 0.0007802113757 | J98: 152 | K98: 29436 | L98: 0.150976299 | M98: 29 | N98: 73044 | O98: 0.3746403311 | P98: 185 | T98: 2020-06-14 | U98: 0.002093492171 | V98: 194819 | W98: 0.1509452363 | X98: 29407 | Y98: 0.3739830304 | Z98: 72859
A99: 2020-06-16 | B99: 8176752 | C99: 141625 | D99: 0.01762573261 | E99: 443727 | F99: 6831 | G99: 0.01563529993 | H99: 195617 | I99: 0.003313313262 | J99: 646 | K99: 29547 | L99: 0.1510451546 | M99: 111 | N99: 73335 | O99: 0.3748907304 | P99: 291 | T99: 2020-06-15 | U99: 0.0007802113757 | V99: 194971 | W99: 0.150976299 | X99: 29436 | Y99: 0.3746403311 | Z99: 73044
A100: 2020-06-17 | B100: 8352697 | C100: 175945 | D100: 0.02151771266 | E100: 449024 | F100: 5297 | G100: 0.01193752014 | H100: 196075 | I100: 0.002341309804 | J100: 458 | K100: 29575 | L100: 0.1508351396 | M100: 28 | N100: 73667 | O100: 0.3757082749 | P100: 332 | T100: 2020-06-16 | U100: 0.003313313262 | V100: 195617 | W100: 0.1510451546 | X100: 29547 | Y100: 0.3748907304 | Z100: 73335
A101: 2020-06-18 | B101: 8490426 | C101: 137729 | D101: 0.01648916512 | E101: 453978 | F101: 4954 | G101: 0.01103281784 | H101: 196542 | I101: 0.00238174168 | J101: 467 | K101: 29603 | L101: 0.1506192061 | M101: 28 | N101: 73887 | O101: 0.3759349147 | P101: 220 | T101: =A100 -> 2020-06-17 | U101: =+I100 -> 0.002341309804 | V101: =H100 -> 196075 | W101: =L100 -> 0.1508351396 | X101: =K100 -> 29575 | Y101: =O100 -> 0.3757082749 | Z101: =N100 -> 73667
A102: 2020-06-19 | B102: 8664405 | C102: 173979 | D102: 0.02049119797 | E102: 460002 | F102: 6024 | G102: 0.01326936548 | H102: 197353 | I102: 0.004126344496 | J102: 811 | K102: 29617 | L102: 0.1500711922 | M102: 14 | N102: 74117 | O102: 0.3755554767 | P102: 230 | T102: 2020-06-18 | U102: 0.00238174168 | V102: 196542 | W102: 0.1506192061 | X102: 29603 | Y102: 0.3759349147 | Z102: 73887
A103: 2020-06-20 | B103: 8793064 | C103: 128659 | D103: 0.01484914429 | E103: 464462 | F103: 4460 | G103: 0.009695610019 | H103: 197994 | I103: 0.003247987109 | J103: 641 | K103: 29633 | L103: 0.1496661515 | M103: 16 | N103: 74117 | O103: 0.3743396265 | P103: 0 | T103: 2020-06-19 | U103: 0.004126344496 | V103: 197353 | W103: 0.1500711922 | X103: 29617 | Y103: 0.3755554767 | Z103: 74117
A104: 2020-06-21 | B104: 8954868 | C104: 161804 | D104: 0.01840132177 | E104: 468343 | F104: 3881 | G104: 0.008355904251 | H104: 198278 | I104: 0.001434386901 | J104: 284 | K104: 29640 | L104: 0.1494870838 | M104: 7 | N104: 74372 | O104: 0.3750895208 | P104: 255 | T104: 2020-06-20 | U104: 0.003247987109 | V104: 197994 | W104: 0.1496661515 | X104: 29633 | Y104: 0.3743396265 | Z104: 74117
A105: 2020-06-22 | B105: 9100125 | C105: 145257 | D105: 0.01622100962 | E105: 472169 | F105: 3826 | G105: 0.0081692264 | H105: 198651 | I105: 0.001881197107 | J105: 373 | K105: 29663 | L105: 0.1493221781 | M105: 23 | N105: 74612 | O105: 0.3755933773 | P105: 240 | T105: 2020-06-21 | U105: 0.001434386901 | V105: 198278 | W105: 0.1494870838 | X105: 29640 | Y105: 0.3750895208 | Z105: 74372
A106: 2020-06-23 | B106: 9264924 | C106: 164799 | D106: =IF(B106<>0,(B106/B105)-1,0) -> 0.01810953146 | E106: 477581 | F106: 5412 | G106: =IF(E106<>0,(E106/E105)-1,0) -> 0.01146199772 | H106: 199262 | I106: =IF(H106<>0,(H106/H105)-1,0) -> 0.003075745906 | J106: =IF(H106="",NA(),+H106-H105) -> 611 | K106: 29720 | L106: =IF(H106<>0,K106/H106,0) -> 0.1491503648 | M106: =IF(K106="",NA(),+K106-K105) -> 57 | N106: 74871 | O106: =IF(H106<>0,N106/H106,0) -> 0.3757414861 | P106: =IF(N106="",NA(),+N106-N105) -> 259 | T106: 2020-06-22 | U106: =+I105 -> 0.001881197107 | V106: =H105 -> 198651 | W106: =L105 -> 0.1493221781 | X106: =K105 -> 29663 | Y106: =O105 -> 0.3755933773 | Z106: =N105 -> 74612
A107: 2020-06-24 | B107: 9431842 | C107: 166918 | D107: =IF(B107<>0,(B107/B106)-1,0) -> 0.01801612188 | E107: 482749 | F107: 5168 | G107: =IF(E107<>0,(E107/E106)-1,0) -> 0.01082120101 | H107: 199343 | I107: =IF(H107<>0,(H107/H106)-1,0) -> 0.0004064999849 | J107: =IF(H107="",NA(),+H107-H106) -> 81 | K107: 29731 | L107: =IF(H107<>0,K107/H107,0) -> 0.1491449411 | M107: =IF(K107="",NA(),+K107-K106) -> 11 | N107: 75127 | O107: =IF(H107<>0,N107/H107,0) -> 0.3768730279 | P107: =IF(N107="",NA(),+N107-N106) -> 256 | T107: 2020-06-23 | U107: 0.003075745906 | V107: 199262 | W107: 0.1491503648 | X107: 29720 | Y107: 0.3757414861 | Z107: 74871
A108: 2020-06-25 | B108: 9611287 | C108: 179445 | D108: 0.01902544593 | E108: 489309 | F108: 6560 | G108: 0.01358884223 | H108: 199343 | I108: 0 | J108: 0 | K108: 29752 | L108: 0.1492502872 | M108: 21 | N108: 75351 | O108: 0.3779967192 | P108: 224 | T108: 2020-06-24 | U108: 0.0004064999849 | V108: 199343 | W108: 0.1491449411 | X108: 29731 | Y108: 0.3768730279 | Z108: 75127
A109: 2020-06-26 | B109: 9808649 | C109: 197362 | D109: 0.02053439878 | E109: 494372 | F109: 5063 | G109: 0.01034724479 | H109: 200931 | I109: 0.007966168865 | J109: 1588 | K109: 29778 | L109: 0.1482001284 | M109: 26 | N109: 75351 | O109: 0.3750093316 | P109: 0 | T109: 2020-06-25 | U109: 0 | V109: 199343 | W109: 0.1492502872 | X109: 29752 | Y109: 0.3779967192 | Z109: 75351
A110: 2020-06-27 | B110: 9979535 | C110: 170886 | D110: 0.01742197116 | E110: 498710 | F110: 4338 | G110: 0.008774768798 | H110: 200931 | I110: 0 | J110: 0 | K110: 29781 | L110: 0.1482150589 | M110: 3 | N110: 75773 | O110: 0.377109555 | P110: 422 | T110: 2020-06-26 | U110: 0.007966168865 | V110: 200931 | W110: 0.1482001284 | X110: 29778 | Y110: 0.3750093316 | Z110: 75351
A111: 2020-06-28 | B111: 10147402 | C111: 167867 | D111: 0.01682112443 | E111: 501895 | F111: 3185 | G111: 0.006386477111 | H111: 200931 | I111: 0 | J111: 0 | K111: 29778 | L111: 0.1482001284 | M111: -3 | N111: 75649 | O111: 0.3764924277 | P111: -124 | T111: 2020-06-27 | U111: 0 | V111: 200931 | W111: 0.1482150589 | X111: 29781 | Y111: 0.377109555 | Z111: 75773
A112: 2020-06-29 | B112: 10302785 | C112: 155383 | D112: 0.01531258937 | E112: 505502 | F112: 3607 | G112: 0.007186762171 | H112: 202255 | I112: 0.006589326684 | J112: 1324 | K112: 29813 | L112: 0.1474030308 | M112: 35 | N112: 75999 | O112: 0.3757583249 | P112: 350 | T112: 2020-06-28 | U112: 0 | V112: 200931 | W112: 0.1482001284 | X112: 29778 | Y112: 0.3764924277 | Z112: 75649
A113: 2020-06-30 | B113: 10477984 | C113: 175199 | D113: 0.01700501369 | E113: 511260 | F113: 5758 | G113: 0.01139065721 | H113: 202908 | I113: 0.003228597562 | J113: 653 | K113: 29843 | L113: 0.1470765076 | M113: 30 | N113: 76274 | O113: 0.3759043507 | P113: 275 | T113: 2020-06-29 | U113: 0.006589326684 | V113: 202255 | W113: 0.1474030308 | X113: 29813 | Y113: 0.3757583249 | Z113: 75999
A114: 2020-07-01 | B114: 10695133 | C114: 217149 | D114: 0.02072431109 | E114: 516207 | F114: 4947 | G114: 0.009676094355 | H114: 203826 | I114: 0.004524217872 | J114: 918 | K114: 29861 | L114: 0.1465024089 | M114: 18 | N114: 76274 | O114: 0.3742113371 | P114: 0 | T114: 2020-06-30 | U114: 0.003228597562 | V114: 202908 | W114: 0.1470765076 | X114: 29843 | Y114: 0.3759043507 | Z114: 76274
A115: 2020-07-02 | B115: 10872207 | C115: 177074 | D115: 0.01655650285 | E115: 521295 | F115: 5088 | G115: 0.009856511051 | H115: 204485 | I115: 0.003233149843 | J115: 659 | K115: 29875 | L115: 0.1460987358 | M115: 14 | N115: 76802 | O115: 0.3755874514 | P115: 528 | T115: 2020-07-01 | U115: 0.004524217872 | V115: 203826 | W115: 0.1465024089 | X115: 29861 | Y115: 0.3742113371 | Z115: 76274
A116: 2020-07-03 | B116: 11079605 | C116: 207398 | D116: 0.0190759797 | E116: 525188 | F116: 3893 | G116: 0.007467940418 | H116: 205067 | I116: 0.002846174536 | J116: 582 | K116: 29893 | L116: 0.1457718697 | M116: 18 | N116: 77060 | O116: 0.3757796232 | P116: 258 | T116: 2020-07-02 | U116: 0.003233149843 | V116: 204485 | W116: 0.1460987358 | X116: 29875 | Y116: 0.3755874514 | Z116: 76802
A117: 2020-07-04 | B117: 11280310 | C117: 200705 | D117: 0.01811481546 | E117: 531053 | F117: 5865 | G117: 0.01116742957 | H117: 205067 | I117: 0 | J117: 0 | K117: 29893 | L117: 0.1457718697 | M117: 0 | N117: 77060 | O117: 0.3757796232 | P117: 0 | T117: 2020-07-03 | U117: 0.002846174536 | V117: 205067 | W117: 0.1457718697 | X117: 29893 | Y117: 0.3757796232 | Z117: 77060
A118: 2020-07-05 | B118: 11451092 | C118: 170782 | D118: 0.01513983215 | E118: 534270 | F118: 3217 | G118: 0.006057775778 | H118: 205067 | I118: 0 | J118: 0 | K118: 29893 | L118: 0.1457718697 | M118: 0 | N118: 77060 | O118: 0.3757796232 | P118: 0 | T118: 2020-07-04 | U118: 0 | V118: 205067 | W118: 0.1457718697 | X118: 29893 | Y118: 0.3757796232 | Z118: 77060
A119: 2020-07-06 | B119: 11620941 | C119: 169849 | D119: 0.0148325592 | E119: 538055 | F119: 3785 | G119: 0.007084432965 | H119: 206442 | I119: 0.006705125642 | J119: 1375 | K119: 29920 | L119: 0.1449317484 | M119: 27 | N119: 77319 | O119: 0.3745313454 | P119: 259 | T119: 2020-07-05 | U119: 0 | V119: 205067 | W119: 0.1457718697 | X119: 29893 | Y119: 0.3757796232 | Z119: 77060
A120: 2020-07-07 | B120: 11841089 | C120: 220148 | D120: 0.0189440769 | E120: 544399 | F120: 6344 | G120: 0.0117906162 | H120: 208066 | I120: 0.007866616289 | J120: 1624 | K120: 29920 | L120: 0.1438005248 | M120: 0 | N120: 77655 | O120: 0.3732229197 | P120: 336 | T120: 2020-07-06 | U120: 0.006705125642 | V120: 206442 | W120: 0.1449317484 | X120: 29920 | Y120: 0.3745313454 | Z120: 77319
A121: 2020-07-08 | B121: 12044452 | C121: 203363 | D121: 0.01717434942 | E121: 549506 | F121: 5107 | G121: 0.009380987107 | H121: 208729 | I121: 0.003186488903 | J121: 663 | K121: 29965 | L121: 0.1435593521 | M121: 45 | N121: 77655 | O121: 0.3720374265 | P121: 0 | T121: 2020-07-07 | U121: 0.007866616289 | V121: 208066 | W121: 0.1438005248 | X121: 29920 | Y121: 0.3732229197 | Z121: 77655
A122: 2020-07-09 | B122: 12270512 | C122: 226060 | D122: 0.01876880741 | E122: 554921 | F122: 5415 | G122: 0.009854305503 | H122: 209350 | I122: 0.002975149596 | J122: 621 | K122: 29979 | L122: 0.1432003821 | M122: 14 | N122: 78170 | O122: 0.3733938381 | P122: 515 | T122: 2020-07-08 | U122: 0.003186488903 | V122: 208729 | W122: 0.1435593521 | X122: 29965 | Y122: 0.3720374265 | Z122: 77655
A123: 2020-07-10 | B123: 12500460 | C123: 229948 | D123: 0.01873988632 | E123: 560206 | F123: 5285 | G123: 0.009523878174 | H123: 210008 | I123: 0.003143061858 | J123: 658 | K123: 30004 | L123: 0.1428707478 | M123: 25 | N123: 78388 | O123: 0.373261971 | P123: 218 | T123: 2020-07-09 | U123: 0.002975149596 | V123: 209350 | W123: 0.1432003821 | X123: 29979 | Y123: 0.3733938381 | Z123: 78170
A124: 2020-07-16 | B124: 13887946 | C124: 1387486 | D124: 0.1109947954 | E124: 592570 | F124: 32364 | G124: 0.05777160545 | H124: 213302 | I124: 0.01568511676 | J124: 3294 | K124: 30138 | L124: 0.1412926274 | M124: 134 | N124: 79036 | O124: 0.3705356724 | P124: 648 | T124: 2020-07-10 | U124: 0.003143061858 | V124: 210008 | W124: 0.1428707478 | X124: 30004 | Y124: 0.373261971 | Z124: 78388
A125: 2020-07-17 | B125: 14108948 | C125: 221002 | D125: 0.01591322432 | E125: 602653 | F125: 10083 | G125: 0.01701571122 | H125: 214138 | I125: 0.003919325651 | J125: 836 | K125: 30152 | L125: 0.1408063959 | M125: 14 | N125: 79244 | O125: 0.3700604283 | P125: 208 | T125: 2020-07-16 | U125: 0.01568511676 | V125: 213302 | W125: 0.1412926274 | X125: 30138 | Y125: 0.3705356724 | Z125: 79036
A126: 2020-07-18 | B126: 14301747 | C126: 192799 | D126: 0.01366501599 | E126: 602244 | F126: -409 | G126: -0.0006786658326 | H126: 214138 | I126: 0 | J126: 0 | K126: 30152 | L126: 0.1408063959 | M126: 0 | N126: 79244 | O126: 0.3700604283 | P126: 0 | T126: 2020-07-17 | U126: 0.003919325651 | V126: 214138 | W126: 0.1408063959 | X126: 30152 | Y126: 0.3700604283 | Z126: 79244
A127: 2020-07-19 | B127: 14520344 | C127: 218597 | D127: 0.01528463621 | E127: 606279 | F127: 4035 | G127: 0.006699942216 | H127: 214138 | I127: 0 | J127: 0 | K127: 30152 | L127: 0.1408063959 | M127: 0 | N127: 79244 | O127: 0.3700604283 | P127: 0 | T127: 2020-07-18 | U127: 0 | V127: 214138 | W127: 0.1408063959 | X127: 30152 | Y127: 0.3700604283 | Z127: 79244
A128: 2020-07-20 | B128: 14718302 | C128: 197958 | D128: 0.01363314809 | E128: 610063 | F128: 3784 | G128: 0.006241350929 | H128: 216218 | I128: 0.009713362411 | J128: 2080 | K128: 30177 | L128: 0.1395674736 | M128: 25 | N128: 79541 | O128: 0.36787409 | P128: 297 | T128: 2020-07-19 | U128: 0 | V128: 214138 | W128: 0.1408063959 | X128: 30152 | Y128: 0.3700604283 | Z128: 79244
A129: 2020-07-21 | B129: 14960620 | C129: 242318 | D129: 0.0164637198 | E129: 616552 | F129: 6489 | G129: 0.01063660638 | H129: 216892 | I129: 0.003117224283 | J129: 674 | K129: 30165 | L129: 0.1390784354 | M129: -12 | N129: 79734 | O129: 0.3676207513 | P129: 193 | T129: 2020-07-20 | U129: 0.009713362411 | V129: 216218 | W129: 0.1395674736 | X129: 30177 | Y129: 0.36787409 | Z129: 79541
A130: 2020-07-22 | B130: 15244814 | C130: 284194 | D130: 0.01899613786 | E130: 623570 | F130: 7018 | G130: 0.0113826571 | H130: 217890 | I130: 0.004601368423 | J130: 998 | K130: 30172 | L130: 0.1384735417 | M130: 7 | N130: 79957 | O130: 0.3669603929 | P130: 223 | T130: 2020-07-21 | U130: 0.003117224283 | V130: 216892 | W130: 0.1390784354 | X130: 30165 | Y130: 0.3676207513 | Z130: 79734
A131: 2020-07-23 | B131: 15460272 | C131: 215458 | D131: 0.01413319966 | E131: 632288 | F131: 8718 | G131: 0.01398078804 | H131: 218952 | I131: 0.004874019 | J131: 1062 | K131: 30182 | L131: 0.1378475648 | M131: 10 | N131: 80472 | O131: 0.3675326099 | P131: 515 | T131: 2020-07-22 | U131: 0.004601368423 | V131: 217890 | W131: 0.1384735417 | X131: 30172 | Y131: 0.3669603929 | Z131: 79957
A132: 2020-07-24 | B132: 15690254 | C132: 229982 | D132: 0.01487567618 | E132: 638688 | F132: 6400 | G132: 0.01012196974 | H132: 220082 | I132: 0.005160948518 | J132: 1130 | K132: 30192 | L132: 0.137185231 | M132: 10 | N132: 80815 | O132: 0.3672040421 | P132: 343 | T132: 2020-07-23 | U132: 0.004874019 | V132: 218952 | W132: 0.1378475648 | X132: 30182 | Y132: 0.3675326099 | Z132: 80472
A133: 2020-07-25 | B133: 16061844 | C133: 371590 | D133: 0.02368285434 | E133: 644648 | F133: 5960 | G133: 0.009331629841 | H133: 220082 | I133: 0 | J133: 0 | K133: 30192 | L133: 0.137185231 | M133: 0 | N133: 80815 | O133: 0.3672040421 | P133: 0 | T133: 2020-07-24 | U133: 0.005160948518 | V133: 220082 | W133: 0.137185231 | X133: 30192 | Y133: 0.3672040421 | Z133: 80815
A134: =+A133+1 -> 2020-07-26 | B134: 16266285 | C134: 204441 | D134: 0.01272836419 | E134: 648748 | F134: 4100 | G134: 0.006360060064 | H134: 220082 | I134: 0 | J134: 0 | K134: 30192 | L134: 0.137185231 | M134: 0 | N134: 80815 | O134: 0.3672040421 | P134: 0 | T134: 2020-07-25 | U134: 0 | V134: 220082 | W134: 0.137185231 | X134: 30192 | Y134: 0.3672040421 | Z134: 80815
A135: 2020-07-27 | B135: 16495194 | C135: 228909 | D135: 0.01407260478 | E135: 654165 | F135: 5417 | G135: 0.008349929402 | H135: 222633 | I135: 0.01159113421 | J135: 2551 | K135: 30209 | L135: 0.1356896776 | M135: 17 | N135: 80815 | O135: 0.362996501 | P135: 0 | T135: 2020-07-26 | U135: 0 | V135: 220082 | W135: 0.137185231 | X135: 30192 | Y135: 0.3672040421 | Z135: 80815
A136: 2020-07-28 | B136: 16751854 | C136: 256660 | D136: 0.01555968363 | E136: 660498 | F136: 6333 | G136: 0.009681043773 | H136: 223358 | I136: 0.003256480396 | J136: 725 | K136: 30224 | L136: 0.1353163979 | M136: 15 | N136: 81082 | O136: 0.3630136373 | P136: 267 | T136: 2020-07-27 | U136: 0.01159113421 | V136: 222633 | W136: 0.1356896776 | X136: 30209 | Y136: 0.362996501 | Z136: 80815
A137: 2020-07-29 | B137: 17048667 | C137: 296813 | D137: 0.01771821794 | E137: 337214 | F137: -323284 | G137: -0.4894549264 | H137: 224834 | I137: 0.00660822536 | J137: 1476 | K137: 30238 | L137: 0.1344903351 | M137: 14 | N137: 81311 | O137: 0.3616490388 | P137: 229 | T137: 2020-07-28 | U137: 0.003256480396 | V137: 223358 | W137: 0.1353163979 | X137: 30224 | Y137: 0.3630136373 | Z137: 81082
A138: 2020-07-30 | B138: 17318995 | C138: 270328 | D138: 0.01585625433 | E138: 673415 | F138: 336201 | G138: 0.9969959729 | H138: 226211 | I138: 0.006124518534 | J138: 1377 | K138: 30254 | L138: 0.133742391 | M138: 16 | N138: 81500 | O138: 0.3602830985 | P138: 189 | T138: 2020-07-29 | U138: 0.00660822536 | V138: 224834 | W138: 0.1344903351 | X138: 30238 | Y138: 0.3616490388 | Z138: 81311
A139: 2020-07-31 | B139: 17606428 | C139: 287433 | D139: 0.01659640181 | E139: 679554 | F139: 6139 | G139: 0.009116221052 | H139: 227557 | I139: 0.00595019694 | J139: 1346 | K139: 30265 | L139: 0.132999644 | M139: 11 | N139: 81500 | O139: 0.3581520234 | P139: 0 | T139: 2020-07-30 | U139: 0.006124518534 | V139: 226211 | W139: 0.133742391 | X139: 30254 | Y139: 0.3602830985 | Z139: 81500
A140: 2020-08-01 | B140: 17866497 | C140: 260069 | D140: 0.01477125286 | E140: 685186 | F140: 5632 | G140: 0.008287788756 | H140: 227557 | I140: 0 | J140: 0 | K140: 30265 | L140: 0.132999644 | M140: 0 | N140: 81500 | O140: 0.3581520234 | P140: 0 | T140: 2020-07-31 | U140: 0.00595019694 | V140: 227557 | W140: 0.132999644 | X140: 30265 | Y140: 0.3581520234 | Z140: 81500
A141: 2020-08-02 | B141: 18093661 | C141: 227164 | D141: 0.01271452373 | E141: 689462 | F141: 4276 | G141: 0.006240641227 | H141: 227557 | I141: 0 | J141: 0 | K141: 30265 | L141: 0.132999644 | M141: 0 | N141: 81500 | O141: 0.3581520234 | P141: 0 | T141: 2020-08-01 | U141: 0 | V141: 227557 | W141: 0.132999644 | X141: 30265 | Y141: 0.3581520234 | Z141: 81500
A142: 2020-08-03 | B142: 18300253 | C142: 206592 | D142: 0.01141792145 | E142: 693839 | F142: 4377 | G142: 0.006348428195 | H142: 230933 | I142: 0.01483584333 | J142: 3376 | K142: 30294 | L142: 0.1311809053 | M142: 29 | N142: 81500 | O142: 0.3529162138 | P142: 0 | T142: 2020-08-02 | U142: 0 | V142: 227557 | W142: 0.132999644 | X142: 30265 | Y142: 0.3581520234 | Z142: 81500
A143: 2020-08-04 | B143: 18557637 | C143: 257384 | D143: 0.01406450501 | E143: 700811 | F143: 6972 | G143: 0.01004844063 | H143: 231972 | I143: 0.004499140443 | J143: 1039 | K143: 30305 | L143: 0.130640767 | M143: 11 | N143: 82166 | O143: 0.3542065422 | P143: 666 | T143: 2020-08-03 | U143: 0.01483584333 | V143: 230933 | W143: 0.1311809053 | X143: 30294 | Y143: 0.3529162138 | Z143: 81500
A144: 2020-08-05 | B144: 18864818 | C144: 307181 | D144: 0.01655280788 | E144: 708609 | F144: 7798 | G144: 0.01112710845 | H144: 233667 | I144: 0.007306916352 | J144: 1695 | K144: 30314 | L144: 0.1297316266 | M144: 9 | N144: 82200 | O144: 0.3517826651 | P144: 34 | T144: 2020-08-04 | U144: 0.004499140443 | V144: 231972 | W144: 0.130640767 | X144: 30305 | Y144: 0.3542065422 | Z144: 82166
A145: 2020-08-06 | B145: 19107957 | C145: 243139 | D145: 0.01288848904 | E145: 714894 | F145: 6285 | G145: 0.00886948938 | H145: 235278 | I145: 0.006894426684 | J145: 1611 | K145: 30312 | L145: 0.1288348252 | M145: -2 | N145: 82460 | O145: 0.3504790078 | P145: 260 | T145: 2020-08-05 | U145: 0.007306916352 | V145: 233667 | W145: 0.1297316266 | X145: 30314 | Y145: 0.3517826651 | Z145: 82200
A146: 2020-08-07 | B146: 19394602 | C146: 286645 | D146: 0.01500134211 | E146: 721496 | F146: 6602 | G146: 0.009234935529 | H146: 237566 | I146: 0.00972466614 | J146: 2288 | K146: 30324 | L146: 0.1276445283 | M146: 12 | N146: 82836 | O146: 0.3486862598 | P146: 376 | T146: 2020-08-06 | U146: 0.006894426684 | V146: 235278 | W146: 0.1288348252 | X146: 30312 | Y146: 0.3504790078 | Z146: 82460
A147: 2020-08-08 | B147: 19653296 | C147: 258694 | D147: 0.01333845366 | E147: 726908 | F147: 5412 | G147: 0.007501081087 | H147: 237566 | I147: 0 | J147: 0 | K147: 30324 | L147: 0.1276445283 | M147: 0 | N147: 82836 | O147: 0.3486862598 | P147: 0 | T147: 2020-08-07 | U147: 0.00972466614 | V147: 237566 | W147: 0.1276445283 | X147: 30324 | Y147: 0.3486862598 | Z147: 82836
A148: 2020-08-09 | B148: 19877759 | C148: 224463 | D148: 0.01142113771 | E148: 731471 | F148: 4563 | G148: 0.006277273052 | H148: 237566 | I148: 0 | J148: 0 | K148: 30324 | L148: 0.1276445283 | M148: 0 | N148: 82836 | O148: 0.3486862598 | P148: 0 | T148: 2020-08-08 | U148: 0 | V148: 237566 | W148: 0.1276445283 | X148: 30324 | Y148: 0.3486862598 | Z148: 82836
A149: 2020-08-10 | B149: 20108887 | C149: 231128 | D149: 0.01162746766 | E149: 736393 | F149: 4922 | G149: 0.006728906546 | H149: 242420 | I149: 0.02043221673 | J149: 4854 | K149: 30340 | L149: 0.1251546902 | M149: 16 | N149: 82836 | O149: 0.3417044798 | P149: 0 | T149: 2020-08-09 | U149: 0 | V149: 237566 | W149: 0.1276445283 | X149: 30324 | Y149: 0.3486862598 | Z149: 82836
A150: 2020-08-11 | B150: 20312401 | C150: 203514 | D150: 0.01012059991 | E150: 741574 | F150: 5181 | G150: 0.007035645369 | H150: 243817 | I150: 0.005762725848 | J150: 1397 | K150: 30355 | L150: 0.124499112 | M150: 15 | N150: 82836 | O150: 0.3397466132 | P150: 0 | T150: 2020-08-10 | U150: 0.02043221673 | V150: 242420 | W150: 0.1251546902 | X150: 30340 | Y150: 0.3417044798 | Z150: 82836
A151: 2020-08-12 | B151: 20637511 | C151: 325110 | D151: 0.01600549339 | E151: 749496 | F151: 7922 | G151: 0.01068268305 | H151: 246440 | I151: 0.01075806855 | J151: 2623 | K151: 30371 | L151: 0.1232389223 | M151: 16 | N151: 83472 | O151: 0.3387112482 | P151: 636 | T151: 2020-08-11 | U151: 0.005762725848 | V151: 243817 | W151: 0.124499112 | X151: 30355 | Y151: 0.3397466132 | Z151: 82836
A152: 2020-08-13 | B152: 20925737 | C152: 288226 | D152: 0.01396612217 | E152: 755720 | F152: 6224 | G152: 0.008304247121 | H152: 249109 | I152: 0.01083022237 | J152: 2669 | K152: 30371 | L152: 0.1219185176 | M152: 0 | N152: 83472 | O152: 0.3350822331 | P152: 0 | T152: 2020-08-12 | U152: 0.01075806855 | V152: 246440 | W152: 0.1232389223 | X152: 30371 | Y152: 0.3387112482 | Z152: 83472
A153: 2020-08-14 | B153: 21179588 | C153: 253851 | D153: 0.01213104227 | E153: 764824 | F153: 9104 | G153: 0.01204678982 | H153: 251955 | I153: 0.01142471769 | J153: 2846 | K153: 30406 | L153: 0.1206802802 | M153: 35 | N153: 83848 | O153: 0.3327895854 | P153: 376 | T153: 2020-08-13 | U153: 0.01083022237 | V153: 249109 | W153: 0.1219185176 | X153: 30371 | Y153: 0.3350822331 | Z153: 83472
A154: 2020-08-15 | B154: 21472998 | C154: 293410 | D154: 0.01385343284 | E154: 771201 | F154: 6377 | G154: 0.008337865967 | H154: 251955 | I154: 0 | J154: 0 | K154: 30410 | L154: 0.1206961561 | M154: 4 | O154: 0 | T154: 2020-08-14 | U154: 0.01142471769 | V154: 251955 | W154: 0.1206802802 | X154: 30406 | Y154: 0.3327895854 | Z154: 83848
A155: 2020-08-16 | B155: 21693100 | C155: 220102 | D155: 0.01025017559 | E155: 775406 | F155: 4205 | G155: 0.005452534424 | H155: 258280 | I155: 0.02510368915 | J155: 6325 | K155: 30410 | L155: 0.1177404367 | M155: 0 | N155: 83848 | O155: 0.3246399257 | P155: 83848 | T155: 2020-08-15 | U155: 0 | V155: 251955 | W155: 0.1206961561 | X155: 30410 | Y155: 0 | Z155: 0
A156: 2020-08-17 | B156: 21897977 | C156: =IF(B156<>0,+B156-B155,0) -> 204877 | D156: 0.009444339444 | E156: 778659 | F156: =IF(E156<>0,+E156-E155,0) -> 3253 | G156: 0.0041952216 | H156: 258773 | I156: 0.001908781168 | J156: 493 | K156: 30429 | L156: 0.1175895476 | M156: 19 | N156: 83848 | O156: 0.3240214396 | P156: 0 | T156: 2020-08-16 | U156: 0.02510368915 | V156: 258280 | W156: 0.1177404367 | X156: 30410 | Y156: 0.3246399257 | Z156: 83848
A157: 2020-08-18 | B157: 22166886 | C157: 268909 | D157: 0.01228008414 | E157: 781283 | F157: 2624 | G157: 0.003369896193 | H157: 261011 | I157: 0.008648506606 | J157: 2238 | K157: 30445 | L157: 0.1166425936 | M157: 16 | N157: 84065 | O157: 0.3220745486 | P157: 217 | T157: 2020-08-17 | U157: 0.001908781168 | V157: 258773 | W157: 0.1175895476 | X157: 30429 | Y157: 0.3240214396 | Z157: 83848
A158: 2020-08-19 | B158: 22435145 | C158: 268259 | D158: 0.01210179003 | E158: 787863 | F158: 6580 | G158: 0.008422044253 | H158: 264787 | I158: 0.01446682324 | J158: 3776 | K158: 30462 | L158: 0.1150434123 | M158: 17 | N158: 84065 | O158: 0.3174815984 | P158: 0 | T158: 2020-08-18 | U158: 0.008648506606 | V158: 261011 | W158: 0.1166425936 | X158: 30445 | Y158: 0.3220745486 | Z158: 84065
A159: 2020-08-20 | B159: 22705623 | C159: 270478 | D159: 0.01205599518 | E159: 793872 | F159: 6009 | G159: 0.007626960525 | H159: 269558 | I159: 0.01801825618 | J159: 4771 | K159: 30474 | L159: 0.1130517365 | M159: 12 | N159: 84055 | O159: 0.3118252844 | P159: -10 | T159: 2020-08-19 | U159: 0.01446682324 | V159: 264787 | W159: 0.1150434123 | X159: 30462 | Y159: 0.3174815984 | Z159: 84065
A160: 2020-08-21 | B160: 22968012 | C160: 262389 | D160: 0.01155612423 | E160: 799430 | F160: 5558 | G160: 0.007001128645 | H160: 274330 | I160: 0.01770305463 | J160: 4772 | K160: 30503 | L160: 0.1111909015 | M160: 29 | N160: 84065 | O160: 0.3064375023 | P160: 10 | T160: 2020-08-20 | U160: 0.01801825618 | V160: 269558 | W160: 0.1130517365 | X160: 30474 | Y160: 0.3118252844 | Z160: 84055
A161: 2020-08-22 | B161: 23222385 | C161: 254373 | D161: 0.01107509871 | E161: 804562 | F161: 5132 | G161: 0.006419573946 | H161: 277932 | I161: 0.01313017169 | J161: 3602 | K161: 30512 | L161: 0.1097822489 | M161: 9 | N161: 84065 | O161: 0.3024660708 | P161: 0 | T161: 2020-08-21 | U161: 0.01770305463 | V161: 274330 | W161: 0.1111909015 | X161: 30503 | Y161: 0.3064375023 | Z161: 84065
A162: 2020-08-23 | B162: 23439218 | C162: 216833 | D162: 0.00933724077 | E162: 808812 | F162: 4250 | G162: 0.005282377244 | H162: 282829 | I162: 0.0176194177 | J162: 4897 | K162: 30513 | L162: 0.1078849764 | M162: 1 | N162: 84065 | O162: 0.2972290677 | P162: 0 | T162: 2020-08-22 | U162: 0.01313017169 | V162: 277932 | W162: 0.1097822489 | X162: 30512 | Y162: 0.3024660708 | Z162: 84065
A163: 2020-08-24 | B163: 23672905 | C163: 233687 | D163: 0.009969914525 | E163: 813339 | F163: 4527 | G163: 0.005597097966 | H163: 284784 | I163: 0.006912303901 | J163: 1955 | K163: 30528 | L163: 0.1071970335 | M163: 15 | N163: 85199 | O163: 0.2991705995 | P163: 1134 | T163: 2020-08-23 | U163: 0.0176194177 | V163: 282829 | W163: 0.1078849764 | X163: 30513 | Y163: 0.2972290677 | Z163: 84065
A164: 2020-08-26 | B164: 24196118 | C164: 523213 | D164: 0.02210176571 | E164: 825843 | F164: 12504 | G164: 0.01537366338 | H164: 293630 | I164: 0.03106213832 | J164: 8846 | K164: 30544 | L164: 0.1040220686 | M164: 16 | N164: 85524 | O164: 0.2912645166 | P164: 325 | T164: 2020-08-24 | U164: 0.006912303901 | V164: 284784 | W164: 0.1071970335 | X164: 30528 | Y164: 0.2991705995 | Z164: 85199
A165: 2020-08-27 | B165: 24470762 | C165: 274644 | D165: 0.01135074643 | E165: 831721 | F165: 5878 | G165: 0.007117575617 | H165: 299741 | I165: 0.02081190614 | J165: 6111 | K165: 30576 | L165: 0.102008067 | M165: 32 | N165: 85984 | O165: 0.28686099 | P165: 460 | T165: =A164 -> 2020-08-26 | U165: 0.03106213832 | V165: 293630 | W165: 0.1040220686 | X165: 30544 | Y165: 0.2912645166 | Z165: 85524
A166: 2020-08-28 | B166: 24765047 | C166: 294285 | D166: 0.01202598432 | E166: 837430 | F166: 5709 | G166: 0.006864080623 | H166: 307120 | I166: 0.02461792014 | J166: 7379 | K166: 30595 | L166: 0.09961904142 | M166: 19 | N166: 86177 | O166: 0.2805971607 | P166: 193 | T166: 2020-08-27 | U166: 0.02081190614 | V166: 299741 | W166: 0.102008067 | X166: 30576 | Y166: 0.28686099 | Z166: 85984
A167: 2020-08-29 | B167: 25021364 | C167: 256317 | D167: 0.01034995007 | E167: 842663 | F167: 5233 | G167: 0.006248880503 | H167: 312573 | I167: 0.01775527481 | J167: 5453 | K167: 30601 | L167: 0.09790033048 | M167: 6 | N167: 86177 | O167: 0.275701996 | P167: 0 | T167: 2020-08-28 | U167: 0.02461792014 | V167: 307120 | W167: 0.09961904142 | X167: 30595 | Y167: 0.2805971607 | Z167: 86177
A168: 2020-08-30 | B168: 25242391 | C168: 221027 | D168: 0.008833531218 | E168: 846540 | F168: 3877 | G168: 0.004600890273 | H168: 317986 | I168: 0.01731755462 | J168: 5413 | K168: 30605 | L168: 0.09624637563 | M168: 4 | N168: 86177 | O168: 0.2710087866 | P168: 0 | T168: 2020-08-29 | U168: 0.01775527481 | V168: 312573 | W168: 0.09790033048 | X168: 30601 | Y168: 0.275701996 | Z168: 86177
A169: 2020-08-31 | B169: 25504256 | C169: 261865 | D169: 0.01037401726 | E169: 850684 | F169: 4144 | G169: 0.004895220545 | H169: 321108 | I169: 0.009818042304 | J169: 3122 | K169: 30635 | L169: 0.09540403852 | M169: 30 | N169: 86469 | O169: 0.2692832318 | P169: 292 | T169: 2020-08-30 | U169: 0.01731755462 | V169: 317986 | W169: 0.09624637563 | X169: 30605 | Y169: 0.2710087866 | Z169: 86177
A170: 2020-09-01 | B170: 25780781 | C170: 276525 | D170: 0.01084230804 | E170: 857406 | F170: 6722 | G170: 0.007901876608 | H170: 326307 | I170: 0.01619081431 | J170: 5199 | K170: 30661 | L170: 0.09396365999 | M170: 26 | N170: 86712 | O170: 0.2657374803 | P170: 243 | T170: 2020-08-31 | U170: =+I169 -> 0.009818042304 | V170: =H169 -> 321108 | W170: =L169 -> 0.09540403852 | X170: =K169 -> 30635 | Y170: =O169 -> 0.2692832318 | Z170: =N169 -> 86469
A171: 2020-09-02 | B171: 26055844 | C171: 275063 | D171: =IF(B171<>0,(B171/B170)-1,0) -> 0.01066930439 | E171: 863266 | F171: 5860 | G171: =IF(E171<>0,(E171/E170)-1,0) -> 0.006834568454 | H171: 333324 | I171: =IF(H171<>0,(H171/H170)-1,0) -> 0.02150428891 | J171: =IF(H171="",NA(),+H171-H170) -> 7017 | K171: 30686 | L171: =IF(H171<>0,K171/H171,0) -> 0.0920605777 | M171: =IF(K171="",NA(),+K171-K170) -> 25 | N171: 86963 | O171: =IF(H171<>0,N171/H171,0) -> 0.2608963051 | P171: =IF(N171="",NA(),+N171-N170) -> 251 | T171: 2020-09-01 | U171: 0.01619081431 | V171: 326307 | W171: 0.09396365999 | X171: 30661 | Y171: 0.2657374803 | Z171: 86712
A172: 2020-09-03 | B172: 26325611 | C172: 269767 | D172: 0.0103534163 | E172: 868893 | F172: 5627 | G172: 0.006518268992 | H172: 340481 | I172: 0.0214716012 | J172: 7157 | K172: 30706 | L172: 0.09018418062 | M172: 20 | N172: 87206 | O172: 0.2561258925 | P172: 243 | T172: 2020-09-02 | U172: 0.02150428891 | V172: 333324 | W172: 0.0920605777 | X172: 30686 | Y172: 0.2608963051 | Z172: 86963
A173: 2020-09-04 | B173: 26642645 | C173: 317034 | D173: 0.01204279741 | E173: 874856 | F173: 5963 | G173: 0.006862755253 | H173: 349456 | I173: 0.02635976751 | J173: 8975 | K173: 30724 | L173: 0.08791950918 | M173: 18 | N173: 87447 | O173: 0.250237512 | P173: 241 | T173: 2020-09-03 | U173: 0.0214716012 | V173: 340481 | W173: 0.09018418062 | X173: 30706 | Y173: 0.2561258925 | Z173: 87206
A174: 2020-09-05 | B174: 26911178 | C174: 268533 | D174: 0.01007906685 | E174: 879741 | F174: 4885 | G174: 0.005583776073 | H174: 358006 | I174: 0.02446659951 | J174: 8550 | K174: 30736 | L174: 0.08585330972 | M174: 12 | N174: 87447 | O174: 0.2442612694 | P174: 0 | T174: 2020-09-04 | U174: 0.02635976751 | V174: 349456 | W174: 0.08791950918 | X174: 30724 | Y174: 0.250237512 | Z174: 87447
A175: 2020-09-06 | B175: 27149876 | C175: 238698 | D175: 0.008869845831 | E175: 883695 | F175: 3954 | G175: 0.004494504633 | H175: 365077 | I175: 0.01975106562 | J175: 7071 | K175: 30739 | L175: 0.0841986759 | M175: 3 | N175: 87447 | O175: 0.2395302909 | P175: 0 | T175: 2020-09-05 | U175: 0.02446659951 | V175: 358006 | W175: 0.08585330972 | X175: 30736 | Y175: 0.2442612694 | Z175: 87447
A176: 2020-09-07 | B176: 27359421 | C176: 209545 | D176: 0.007718083132 | E176: 892837 | F176: 9142 | G176: 0.01034519829 | H176: 369280 | I176: 0.0115126398 | J176: 4203 | K176: 30764 | L176: 0.08330805893 | M176: 25 | N176: 87447 | O176: 0.2368040511 | P176: 0 | T176: 2020-09-06 | U176: 0.01975106562 | V176: 365077 | W176: 0.0841986759 | X176: 30739 | Y176: 0.2395302909 | Z176: 87447
A177: 2020-09-08 | B177: 27605667 | C177: 246246 | D177: 0.009000409767 | E177: 897875 | F177: 5038 | G177: 0.005642687299 | H177: 375824 | I177: 0.01772097054 | J177: 6544 | K177: 30803 | L177: 0.08196123717 | M177: 39 | N177: 88226 | O177: 0.2347535016 | P177: 779 | T177: 2020-09-07 | U177: 0.0115126398 | V177: 369280 | W177: 0.08330805893 | X177: 30764 | Y177: 0.2368040511 | Z177: 87447
A178: 2020-09-09 | B178: 27889677 | C178: 284010 | D178: 0.01028810497 | E178: 903936 | F178: 6061 | G178: 0.006750382848 | H178: 384401 | I178: 0.02282185278 | J178: 8577 | K178: 30833 | L178: 0.08021050934 | M178: 30 | N178: 88524 | O178: 0.2302907641 | P178: 298 | T178: 2020-09-08 | U178: 0.01772097054 | V178: 375824 | W178: 0.08196123717 | X178: 30803 | Y178: 0.2347535016 | Z178: 88226
A179: 2020-09-10 | B179: 28192842 | C179: 303165 | D179: 0.01087015099 | E179: 909810 | F179: 5874 | G179: 0.006498247664 | H179: 394244 | I179: 0.02560607282 | J179: 9843 | K179: 30852 | L179: 0.07825610536 | M179: 19 | N179: 88742 | O179: 0.2250941042 | P179: 218 | T179: 2020-09-09 | U179: 0.02282185278 | V179: 384401 | W179: 0.08021050934 | X179: 30833 | Y179: 0.2302907641 | Z179: 88524
A180: 2020-09-11 | B180: 28514807 | C180: 321965 | D180: 0.01142009734 | E180: 915759 | F180: 5949 | G180: 0.006538727866 | H180: 403650 | I180: 0.02385832124 | J180: 9406 | K180: 30892 | L180: 0.07653164871 | M180: 40 | N180: 89059 | O180: 0.2206342128 | P180: 317 | T180: 2020-09-10 | U180: 0.02560607282 | V180: 394244 | W180: 0.07825610536 | X180: 30852 | Y180: 0.2250941042 | Z180: 88742
A181: 2020-09-12 | B181: 28795605 | C181: 280798 | D181: 0.009847445224 | E181: 920450 | F181: 4691 | G181: 0.005122526778 | H181: 414211 | I181: 0.02616375573 | J181: 10561 | K181: 30909 | L181: 0.07462138862 | M181: 17 | N181: 89059 | O181: 0.2150087757 | P181: 0 | T181: 2020-09-11 | U181: 0.02385832124 | V181: 403650 | W181: 0.07653164871 | X181: 30892 | Y181: 0.2206342128 | Z181: 89059
A182: 2020-09-13 | B182: 29035883 | C182: 240278 | D182: 0.00834425948 | E182: 924063 | F182: 3613 | G182: 0.003925253952 | H182: 421394 | I182: 0.01734140329 | J182: 7183 | K182: 30915 | L182: 0.07336364542 | M182: 6 | N182: 89059 | O182: 0.211343778 | P182: 0 | T182: 2020-09-12 | U182: 0.02616375573 | V182: 414211 | W182: 0.07462138862 | X182: 30909 | Y182: 0.2150087757 | Z182: 89059
A183: 2020-09-14 | B183: 29299670 | C183: 263787 | D183: 0.009084862341 | E183: 928502 | F183: 4439 | G183: 0.004803785023 | H183: 428641 | I183: 0.01719768198 | J183: 7247 | K183: 30950 | L183: 0.0722049454 | M183: 35 | N183: 89507 | O183: 0.2088157689 | P183: 448 | T183: 2020-09-13 | U183: =+I182 -> 0.01734140329 | V183: =H182 -> 421394 | W183: =L182 -> 0.07336364542 | X183: =K182 -> 30915 | Y183: =O182 -> 0.211343778 | Z183: =N182 -> 89059
A184: 2020-09-15 | B184: 29609110 | C184: 309440 | D184: 0.0105612111 | E184: 935389 | F184: 6887 | G184: 0.007417323818 | H184: 437151 | I184: 0.01985344379 | J184: 8510 | K184: 30999 | L184: 0.0709114242 | M184: 49 | N184: 89891 | O184: 0.2056291762 | P184: 384 | T184: 2020-09-14 | U184: 0.01719768198 | V184: 428641 | W184: 0.0722049454 | X184: 30950 | Y184: 0.2088157689 | Z184: 89507
A185: 2020-09-16 | B185: 29893293 | C185: 284183 | D185: 0.009597823102 | E185: 940877 | F185: 5488 | G185: 0.005867077761 | H185: 446935 | I185: 0.02238128244 | J185: 9784 | K185: 31045 | L185: 0.0694620023 | M185: 46 | N185: 90335 | O185: 0.2021211138 | P185: 444 | T185: 2020-09-15 | U185: 0.01985344379 | V185: 437151 | W185: 0.0709114242 | X185: 30999 | Y185: 0.2056291762 | Z185: 89891
A186: 2020-09-17 | B186: 30208774 | C186: 315481 | D186: 0.01055357133 | E186: 946322 | F186: 5445 | G186: 0.0057871539 | H186: 457528 | I186: 0.02370143309 | J186: 10593 | K186: 31095 | L186: 0.06796305363 | M186: 50 | N186: 90840 | O186: 0.1985452256 | P186: 505 | T186: 2020-09-16 | U186: 0.02238128244 | V186: 446935 | W186: 0.0694620023 | X186: 31045 | Y186: 0.2021211138 | Z186: 90335
A187: 2020-09-18 | B187: 30432603 | C187: 223829 | D187: 0.007409403639 | E187: 950684 | F187: 4362 | G187: 0.004609424699 | H187: 471395 | I187: 0.03030852757 | J187: 13867 | K187: 31249 | L187: 0.06629047826 | M187: 154 | N187: 91574 | O187: 0.1942617126 | P187: 734 | T187: 2020-09-17 | U187: 0.02370143309 | V187: 457528 | W187: 0.06796305363 | X187: 31095 | Y187: 0.1985452256 | Z187: 90840
A188: 2020-09-19 | B188: 30817515 | C188: 384912 | D188: 0.01264801437 | E188: 957165 | F188: 6481 | G188: 0.006817196881 | H188: 484893 | I188: 0.02863416031 | J188: 13498 | K188: 31274 | L188: 0.0644967034 | M188: 25 | N188: 91574 | O188: 0.1888540358 | P188: 0 | T188: 2020-09-18 | U188: 0.03030852757 | V188: 471395 | W188: 0.06629047826 | X188: 31249 | Y188: 0.1942617126 | Z188: 91574
A189: 2020-09-20 | B189: 31080230 | C189: 262715 | D189: 0.00852485997 | E189: 960898 | F189: 3733 | G189: 0.003900059028 | H189: 496462 | I189: 0.02385887196 | J189: 11569 | K189: 31285 | L189: 0.06301590051 | M189: 11 | N189: 91574 | O189: 0.1844531908 | P189: 0 | T189: 2020-09-19 | U189: 0.02863416031 | V189: 484893 | W189: 0.0644967034 | X189: 31274 | Y189: 0.1888540358 | Z189: 91574
A190: 2020-09-21 | B190: 31355013 | C190: 274783 | D190: 0.00884108644 | E190: 965003 | F190: 4105 | G190: 0.004272045524 | H190: 500760 | I190: 0.008657258763 | J190: 4298 | K190: 31338 | L190: 0.06258087707 | M190: 53 | N190: 93008 | O190: 0.1857336848 | P190: 1434 | T190: 2020-09-20 | U190: 0.02385887196 | V190: 496462 | W190: 0.06301590051 | X190: 31285 | Y190: 0.1844531908 | Z190: 91574
A191: 2020-09-22 | B191: 31628411 | C191: 273398 | D191: 0.008719435071 | E191: 971021 | F191: 6018 | G191: 0.006236250043 | H191: 511624 | I191: 0.02169502356 | J191: 10864 | K191: 31416 | L191: 0.06140446891 | M191: 78 | N191: 93538 | O191: 0.1828256689 | P191: 530 | T191: 2020-09-21 | U191: 0.008657258763 | V191: 500760 | W191: 0.06258087707 | X191: 31338 | Y191: 0.1857336848 | Z191: 93008
A192: 2020-09-23 | B192: 31920969 | C192: 292558 | D192: 0.009249848182 | E192: 976847 | F192: 5826 | G192: 0.00599987024 | H192: 524696 | I192: 0.02555001329 | J192: 13072 | K192: 31459 | L192: 0.0599566225 | M192: 43 | N192: 93528 | O192: 0.1782517877 | P192: -10 | T192: 2020-09-22 | U192: 0.02169502356 | V192: 511624 | W192: 0.06140446891 | X192: 31416 | Y192: 0.1828256689 | Z192: 93538
A193: 2020-09-24 | B193: 32259942 | C193: 338973 | D193: 0.01061913252 | E193: 983147 | F193: 6300 | G193: 0.006449321132 | H193: 540792 | I193: 0.03067681095 | J193: 16096 | K193: 31511 | L193: 0.05826824361 | M193: 52 | N193: 94413 | O193: 0.1745828341 | P193: 885 | T193: 2020-09-23 | U193: 0.02555001329 | V193: 524696 | W193: 0.0599566225 | X193: 31459 | Y193: 0.1782517877 | Z193: 93528
A194: 2020-09-25 | B194: 32592727 | C194: 332785 | D194: 0.0103157346 | E194: 989067 | F194: 5920 | G194: 0.006021480002 | H194: 557505 | I194: 0.03090467315 | J194: 16713 | K194: 31661 | L194: 0.05679052206 | M194: 150 | N194: 94891 | O194: 0.1702065452 | P194: 478 | T194: 2020-09-24 | U194: 0.03067681095 | V194: 540792 | W194: 0.05826824361 | X194: 31511 | Y194: 0.1745828341 | Z194: 94413
A195: 2020-09-26 | B195: 32905036 | C195: 312309 | D195: 0.009582168439 | E195: 994627 | F195: 5560 | G195: 0.005621459416 | H195: 571917 | I195: 0.02585088923 | J195: 14412 | K195: 31700 | L195: 0.05542762324 | M195: 39 | N195: 94891 | O195: 0.1659174321 | P195: 0 | T195: 2020-09-25 | U195: 0.03090467315 | V195: 557505 | W195: 0.05679052206 | X195: 31661 | Y195: 0.1702065452 | Z195: 94891
A196: 2020-09-27 | B196: 33137295 | C196: 232259 | D196: 0.007058463635 | E196: 998021 | F196: 3394 | G196: 0.003412334473 | H196: 583040 | I196: 0.01944862629 | J196: 11123 | K196: 31727 | L196: 0.05441650659 | M196: 27 | N196: 94891 | O196: 0.1627521268 | P196: 0 | T196: 2020-09-26 | U196: 0.02585088923 | V196: 571917 | W196: 0.05542762324 | X196: 31700 | Y196: 0.1659174321 | Z196: 94891
A197: 2020-09-28 | B197: 33387876 | C197: 250581 | D197: 0.007561902684 | E197: 1001903 | F197: 3882 | G197: 0.003889697712 | H197: 587110 | I197: 0.006980653128 | J197: 4070 | K197: 31808 | L197: 0.05417724106 | M197: 81 | N197: 95426 | O197: 0.1625351297 | P197: 535 | T197: 2020-09-27 | U197: 0.01944862629 | V197: 583040 | W197: 0.05441650659 | X197: 31727 | Y197: 0.1627521268 | Z197: 94891
A198: =+A197+1 -> 2020-09-29 | B198: 33673676 | C198: 285800 | D198: 0.008559993454 | E198: 1007951 | F198: 6048 | G198: 0.006036512517 | H198: 595780 | I198: 0.01476724975 | J198: 8670 | K198: 31893 | L198: 0.05353150492 | M198: 85 | N198: 96327 | O198: 0.1616821646 | P198: 901 | T198: 2020-09-28 | U198: 0.006980653128 | V198: 587110 | W198: 0.05417724106 | X198: 31808 | Y198: 0.1625351297 | Z198: 95426
A199: 2020-09-30 | B199: 33999973 | C199: 326297 | D199: 0.009689972666 | E199: 1014345 | F199: 6394 | G199: 0.006343562336 | H199: 608625 | I199: 0.0215599718 | J199: 12845 | K199: 31956 | L199: 0.05250523722 | M199: 63 | N199: 96767 | O199: 0.1589928117 | P199: 440 | T199: 2020-09-29 | U199: 0.01476724975 | V199: 595780 | W199: 0.05353150492 | X199: 31893 | Y199: 0.1616821646 | Z199: 96327
A200: 2020-10-01 | B200: 34322463 | C200: 322490 | D200: 0.009485007532 | E200: 1023081 | F200: 8736 | G200: 0.008612454342 | H200: 622595 | I200: 0.02295337852 | J200: 13970 | K200: 32019 | L200: 0.05142829608 | M200: 63 | N200: 97271 | O200: 0.1562347915 | P200: 504 | T200: 2020-09-30 | U200: 0.0215599718 | V200: 608625 | W200: 0.05250523722 | X200: 31956 | Y200: 0.1589928117 | Z200: 96767
... 175 more rows

Sheet Europe
A2: =TODAY() -> 44156 | B2: Population | C2: nb d'atteints | D2: nombre de décès | E2: % atteints / population | F2: % décès / population | G2: % décès / atteints
A3: Luxembourg | B3: 607728 | C3: 29762 | D3: 260 | E3: =C3/B3 -> 0.04897256667 | F3: =D3/B3 -> 0.0004278229734 | G3: =D3/C3 -> 0.008735972045
A4: Danemark | B4: 5800000 | C4: 68380 | D4: 778 | E4: 0.01178965517 | F4: 0.000134137931 | G4: 0.01137759579
A5: Suède | B5: 10183000 | C5: 208295 | D5: 6406 | E5: 0.02045517038 | F5: 0.0006290876952 | G5: 0.03075445882
A6: Canada | B6: 37059000 | C6: 324152 | D6: 11385 | E6: 0.008746917078 | F6: 0.0003072128228 | G6: 0.03512241171
A7: Chili | B7: 18730000 | C7: 537585 | D7: 15003 | E7: 0.02870181527 | F7: 0.0008010144154 | G7: 0.02790814476
A8: Belgique | B8: 11422000 | C8: 553680 | D8: 12352 | E8: 0.04847487305 | F8: 0.001081421818 | G8: 0.0223089149
A9: Allemagne | B9: 82928000 | C9: 914118 | D9: 13918 | E9: 0.01102303203 | F9: 0.0001678323365 | G9: 0.01522560545
A10: Pérou | B10: 31990000 | C10: 943917 | D10: 35446 | E10: 0.02950662707 | F10: 0.001108033761 | G10: 0.03755203053
A11: Mexique | B11: 122191000 | C11: 1025969 | D11: 100823 | E11: 0.008396436726 | F11: 0.0008251262368 | G11: 0.09827100039
A12: Italie | B12: 60431000 | C12: 1345767 | D12: 48569 | E12: 0.0222694809 | F12: 0.0008037100164 | G12: 0.03609019986
A13: U.K | B13: 66489000 | C13: 1476271 | D13: 54378 | E13: 0.02220323663 | F13: 0.0008178495691 | G13: 0.0368347004
A14: Espagne | B14: 49648685 | C14: 1556730 | D14: 42619 | E14: 0.031354909 | F14: 0.0008584114564 | G14: 0.02737725874
A15: Russie | B15: 147000000 | C15: 2023025 | D15: 37980 | E15: 0.01376207483 | F15: 0.0002583673469 | G15: 0.01877386587
A16: France | B16: 66987000 | C16: =France!N1 -> 2210652 | D16: =France!P1 -> 48265 | E16: 0.03300120919 | F16: 0.0007205129353 | G16: 0.02183292531
A17: Brésil | B17: 209500000 | C17: 6020164 | D17: 168613 | E17: 0.02873586635 | F17: 0.0008048353222 | G17: 0.02800804098
A18: Inde | B18: 1353000000 | C18: 9050597 | D18: 132726 | E18: 0.006689280857 | F18: 9.809756098e-05 | G18: 0.01466488896
A19: U.S.A | B19: 327168000 | C19: 11913944 | D19: 254424 | E19: 0.0364153707 | F19: 0.0007776555164 | G19: 0.02135514486
B20: Moyenne par jour de pandémie
A21: PAYS | B21: nb habitants | C21: date début | D21: date jour | E21: nb jours pandémie | G21: décès/jour
A22: =A19 -> U.S.A | B22: =B19 -> 327168000 | C22: 2020-01-22 | D22: =NOW() -> 2020-11-21T09:56:41.850 | E22: =INT(D22-C22) -> 304 | F22: =C19/E22 -> 39190.60526 | G22: =D19/E22 -> 836.9210526
A23: =A15 -> Russie | B23: =B15 -> 147000000 | C23: 2020-01-24 | D23: =NOW() -> 2020-11-21T09:56:41.850 | E23: 302 | F23: =C15/E23 -> 6698.758278 | G23: =D15/E23 -> 125.7615894
A24: =A14 -> Espagne | B24: =B14 -> 49648685 | C24: 2020-01-23 | D24: =NOW() -> 2020-11-21T09:56:41.850 | E24: 303 | F24: =C14/E24 -> 5137.722772 | G24: =D14/E24 -> 140.6567657
A25: =A18 -> Inde | B25: =B18 -> 1353000000 | C25: 2020-01-23 | D25: 2020-11-21T09:56:41.850 | E25: 303 | F25: =C18/E25 -> 29869.9571 | G25: =D18/E25 -> 438.039604
A26: =A5 -> Suède | B26: =B5 -> 10183000 | C26: 2020-02-04 | D26: 2020-11-21T09:56:41.850 | E26: 291 | F26: =C5/E26 -> 715.790378 | G26: =D5/E26 -> 22.0137457
A27: =A10 -> Pérou | B27: =B10 -> 31990000 | C27: 2020-01-24 | D27: 2020-11-21T09:56:41.850 | E27: 302 | F27: =C10/E27 -> 3125.55298 | G27: =D10/E27 -> 117.3708609
A28: =A11 -> Mexique | B28: =B11 -> 122191000 | C28: 2020-01-31 | D28: 2020-11-21T09:56:41.850 | E28: 295 | F28: =C11/E28 -> 3477.861017 | G28: =D11/E28 -> 341.7728814
A29: =A17 -> Brésil | B29: =B17 -> 209500000 | C29: 2020-01-30 | D29: 2020-11-21T09:56:41.850 | E29: 296 | F29: =C17/E29 -> 20338.39189 | G29: =D17/E29 -> 569.6385135
A30: =A12 -> Italie | B30: =B12 -> 60431000 | C30: 2020-01-24 | D30: 2020-11-21T09:56:41.850 | E30: 302 | F30: =C12/E30 -> 4456.182119 | G30: =D12/E30 -> 160.8245033

Sheet Graph France

Sheet Graph Europe

Sheet Réunion famille
A1: 2020-08-03 | B1: Annecy | C1: Au total, 21 personnes sur les 93 présentes sur le bateau ont finalement été testées positives au virus
A2: 2020-08-21 | B2: Sarthe | C2: Mariage 200 convives environ, et 76 cas positifs
A3: 2020-08-14 | B3: Orléans | C3: pas moins de 100 personnes ont été testées positives au coronavirus à Orléans à la suite notamment d’un mariage
A4: 2020-08-07 | B4: Laugarais | C4: Deux cas de contamination au coronavirus après un mariage
A5: 2020-07-26 | B5: Gard | C5: 21 personnes contaminées lors d'une fête
A6: 2020-07-03 | B6: Montargis | C6: Une fête de famille, un contaminant… Déjà 48 cas positifs
A7: 2020-08-04 | B7: St Malo | C7: 25 personnes ont été contaminées par le Covid-19 après une fête organisée dans un gîte par une soixantaine de jeunes
